Workbook

Sheet Intro & Contents
B5: Structural Methods and Ratiocination Techniques
B6: (SMART)
B7: Beam-Columns
B10: TABLE OF CONTENTS
B27: Note: This Workbook is intended to provide simplified and automated methods of airframe structural analysis.
C32: Click on Button to go to sheet

Sheet Comp Force
A1: Concentrated Intermediate Load
A3: L | B3: 20
A4: a | B4: 8 | I4: sin | J4: cos | K4: 1 - cos | L4: kx - sin
A5: P | B5: 5000 | G5: k | H5: =SQRT(B5/(B7*B8)) -> 0.01177693743
A6: W | B6: 12000 | G6: kL | H6: =H5*B3 -> 0.2355387486 | I6: =SIN(H6) -> 0.2333668924 | J6: =COS(H6) -> 0.9723887564 | K6: =1-J6 -> 0.02761124362 | L6: =H6-I6 -> 0.002171856164
A7: E | B7: 10300000 | C7: psi | G7: k(L-a) | H7: =H5*(B3-B4) -> 0.1413232491 | I7: =SIN(H7) -> 0.1408532946 | J7: =COS(H7) -> 0.990030479 | K7: =1-J7 -> 0.009969520969 | L7: =H7-I7 -> 0.000469954582
A8: I | B8: 3.5 | C8: in4 | G8: ka | H8: =H5*B4 -> 0.09421549943 | I8: =SIN(H8) -> 0.09407617635 | J8: =COS(H8) -> 0.9955650019
A10: Point A at left end | H10: =B4 -> 8 | I10: =(E11-E12*B5)*I8/H5 -> 57857.05218 | J10: =IF(I10=I13,H10,0) -> 8
D11: RA | E11: =B6*(B3-B4)/B3 -> 7200 | H11: =PI()/(2*H5) -> 133.3790161 | I11: =IF(AND(H10>B3/2,H10>H11),B6*I7/(H5*I6),0) -> 0 | J11: =IF(I11=I13,H11,0) -> 0
D12: qA | E12: =-B6/B5*(I7/I6-(B3-B4)/B3) -> -0.008568404277
D13: Mmax | E13: =I13 -> 57857.05218 | F13: @ x = | G13: =J13 -> 8 | I13: =MAX(I10:I11) -> 57857.05218 | J13: =J10+J11 -> 8
D16: RA | E16: =B6*(I6*(1-J7)-J6*(H7-I7))/(I6*(1-J6)-J6*(H6-I6)) -> 5179.289831
D17: qA | E17: =-B6/B5*(L6*K7-K6*L7)/(I6*K6-J6*L6) -> -0.004807209371
D18: MB | E18: =-B6/H5*(H6*SIN(H5*B4)-H5*B4*I6)/(I6-H6*J6) -> -40414.20337
D19: Ma | E19: =(E16-E17*B5)*I8/H5 -> 41565.05084
D21: RA | E21: =B6*(K6*K7-I6*L7)/(K6^2-I6*L6) -> 7776.383741 | J21: MA | K21: =-B6/H5*(L6*K7-K6*L7)/(K6^2-I6*L6) -> -34595.83682
D22: qA | E22: 0 | H22: =B4 -> 8 | I22: =K21*COS(H5*H22)+E21*SIN(H$5*H22)/H$5 -> 27676.6697 | J22: MB | K22: =K21+E21*B3-B6*(B3-B4) -> -23068.162
D23: Mmax (-) | E23: =MIN(K21:K22) -> -34595.83682 | H23: =B3/2 -> 10 | I23: =K21*COS(H5*H23)+E21*SIN(H5*H23)/H5-B6*SIN(H5*(H23-B4))/H5 -> 19230.22355
D24: Mmax (+) | E24: =MAX(I22:I24) -> 27676.6697 | H24: =B3-B4 -> 12 | I24: =K21*COS(H5*H24)+E21*SIN(H5*H24)/H5-B6*SIN(H5*(H24-B4))/H5 -> 10773.10926
D27: RB | E27: =B6 -> 12000
D28: qA | E28: =B6/B5*K7/J6 -> 0.02460625976
D29: Mmax | E29: =-B6/H5*(I6*K7+J6*I7)/J6 -> -145959.0812

Sheet Comp Moment
A1: Concentrated Intermediate Moment
A3: L | B3: 1305.654
A4: a | B4: 0 | I4: sin | J4: cos | K4: 1 - cos | L4: kx - sin
A5: P | B5: 60607 | G5: k | H5: =SQRT(B5/(B7*B8)) -> 0.001953031664
A6: M0 | B6: 30303.5 | G6: kL | H6: =H5*B3 -> 2.549983605 | I6: =SIN(H6) -> 0.5576973262 | J6: =COS(H6) -> -0.8300443918 | K6: =1-J6 -> 1.830044392 | L6: =H6-I6 -> 1.992286279
A7: E | B7: 80000 | C7: psi | G7: k(L-a) | H7: =H5*(B3-B4) -> 2.549983605 | I7: =SIN(H7) -> 0.5576973262 | J7: =COS(H7) -> -0.8300443918 | K7: =1-J7 -> 1.830044392 | L7: =H7-I7 -> 1.992286279
A8: I | B8: 198616 | C8: in4 | G8: ka | H8: =H5*B4 -> 0 | I8: =SIN(H8) -> 0 | J8: =COS(H8) -> 1
D11: RA | E11: =-B6/B3 -> -23.2094414
D12: qA | E12: =B6/(B5*B3)*(H6*J7/I6-1) -> -0.00183633944 | I12: =B4 -> 0 | J12: =E11*I8/H5-E12*B5*I8/H5 -> 0 | K12: =J12+B6 -> 30303.5
D13: Mmax (-) | E13: =MIN(J12:K12) -> 0
D14: Mmax (+) | E14: =MAX(J12:K12) -> 30303.5
D17: RA | E17: =-B6*H5*(COS(H5*B4)-J6)/(I6-H6*J6) -> -40.49991178 | I17: =B4 -> 0 | J17: =(E17-E18*B5)/H5*I8 -> 0 | K17: =J17+B6 -> 30303.5 | L17: =B6*(I6-H6*J8)/(I6-H6*J6) -> -22575.37182
D18: qA | E18: =-B6*H5/B5*(K6*K7-L6*I7)/(I6*K6-J6*L6) -> -0.0008171915671
D19: Mmax (-) | E19: =MIN(J17:L17) -> -22575.37182
D20: Mmax (+) | E20: =MAX(J17:L17) -> 30303.5
D23: RA | E23: =-B6*H5*(K6*I7-I6*K7)/(K6^2-I6*L6) -> 0 | J23: MA | K23: =-B6*(K6*K7-L6*I7)/(K6^2-I6*L6) -> -30303.5
D24: qA | E24: 0 | H24: =B4 -> 0 | I24: =K23*J8+E23*I8/H5 -> -30303.5 | J24: MB | K24: =E23*B3+K23+B6 -> 0
D25: Mmax (-) | E25: =MIN(I24:I25) -> -30303.5 | H25: 14 | I25: =I24+B6 -> 0
D26: Mmax (+) | E26: =MAX(I24:I25) -> 0
D29: RB | E29: 0
D30: qA | E30: =-B6*H5/B5*I7/J6 -> 0.0006561098106
D31: Mmax | E31: =B6*COS(H5*B4)/J6 -> -36508.28835

Sheet Comp Distributed
A1: Distributed Load
A3: L | B3: 40 | AE3: x | AF3: kx | AG3: k*sin | AH3: cos | AI3: x-a | AJ3: k(x-a) | AK3: cos | AL3: sin | AM3: V | AN3: V'
A4: a | B4: 10 | C4: Case 1 | J4: W | K4: =B12*(B6+B7)/2 -> 50 | M4: Q | N4: =B13/B12 -> 0.15 | O4: (wb-wa)/(b - a) | AE4: =B4+B12/2 -> 20 | AF4: =N$5*AE4 -> 0.2236067977 | AG4: =N$5*SIN(AF4) -> 0.002479218688 | AH4: =COS(AF4) -> 0.9751039932 | AI4: =AE4-B$4 -> 10 | AJ4: =N$5*AI4 -> 0.1118033989 | AK4: =COS(AJ4) -> 0.9937565077 | AL4: =SIN(AJ4) -> 0.1115706207 | AM4: =AC$9*AH4-B$6*AL4/N$5-N$4*(1-AK4)/N$5^2 -> 5.021231993 | AN4: =-AC$9*AG4-B$6*AK4-N$4*AL4/N$5 -> -2.547821289
A5: b | B5: 30 | J5: RA | K5: =K4*(B3-B14)/B3 -> 22.5 | M5: k | N5: =SQRT(B8/(B9*B10)) -> 0.01118033989 | AE5: =AE4-AM4/AN4 -> 21.97079443 | AF5: 0.2456409493 | AG5: 0.002718813629 | AH5: 0.9699816594 | AI5: 11.97079443 | AJ5: 0.1338375504 | AK5: 0.9910571161 | AL5: 0.1334383475 | AM5: =AC$9*AH5-B$6*AL5/N$5-N$4*(1-AK5)/N$5^2 -> -0.2921030841 | AN5: =-AC$9*AG5-B$6*AK5-N$4*AL5/N$5 -> -2.844034946
A6: wa | B6: 1 | J6: RB | K6: =K4-K5 -> 27.5 | AE6: 21.86808715 | AF6: 0.244492647 | AG6: 0.002706358818 | AH6: 0.9702602618 | AI6: 11.86808715 | AJ6: 0.1326892481 | AK6: 0.9912096902 | AL6: 0.1323002266 | AM6: -0.0007910303755 | AN6: -2.828630733
A7: wb | B7: 4 | J7: qA | K7: =Calcs1!F44 -> -0.0005668755204 | AE7: 21.8678075 | AF7: 0.2444895204 | AG7: 0.002706324901 | AH7: 0.9702610186 | AI7: 11.8678075 | AJ7: 0.1326861215 | AK7: 0.9912101039 | AL7: 0.1322971275 | AM7: -5.865285146e-09 | AN7: -2.828588785
A8: P | B8: 1000 | J8: Mmax | K8: =AC11 -> 387.3412871 | L8: @ x = | M8: =AC12 -> 21.86780749 | AE8: 21.86780749 | AF8: 0.2444895204 | AG8: 0.002706324901 | AH8: 0.9702610186 | AI8: 11.86780749 | AJ8: 0.1326861215 | AK8: 0.9912101039 | AL8: 0.1322971275 | AM8: -9.947598301e-14 | AN8: -2.828588785
A9: E | B9: 80000 | C9: psi | AA9: (RA - qA*P) | AC9: =K5-K7*B8 -> 23.06687552 | AE9: 21.86780749 | AF9: 0.2444895204 | AG9: 0.002706324901 | AH9: 0.9702610186 | AI9: 11.86780749 | AJ9: 0.1326861215 | AK9: 0.9912101039 | AL9: 0.1322971275 | AM9: 6.927791674e-14 | AN9: -2.828588785
A10: I | B10: 100 | C10: in4 | N10: wa/k | O10: =B6/N5 -> 89.4427191 | AC10: =AC9*SIN(AF10)/N5-B6*(1-AK10)/N5^2-N4*(AJ10-AL10)/N5^3 -> 387.3412871 | AE10: 21.86780749 | AF10: 0.2444895204 | AG10: 0.002706324901 | AH10: 0.9702610186 | AI10: 11.86780749 | AJ10: 0.1326861215 | AK10: 0.9912101039 | AL10: 0.1322971275 | AM10: 4.440892099e-14 | AN10: -2.828588785
N11: Q/k2 | O11: =N4/N5^2 -> 1200 | AB11: Mmax | AC11: =IF(AC9<0,"NA",AC10) -> 387.3412871
A12: b - a | B12: =B5-B4 -> 20 | AB12: x | AC12: =IF(AC2<0,"NA",AE10) -> 21.86780749
A13: wb-wa | B13: =B7-B6 -> 3 | C13: Case 2
A14: Xcg | B14: =(B6*(B5+2*B4)+B7*(2*B5+B4))*B12/(6*K4) -> 22 | J14: RA | K14: =Calcs1!F102 -> 13.59907721 | Z14: =T14-V14-X14 -> 0
J15: RB | K15: =K4-K14 -> 36.40092279
J16: qA | K16: =Calcs1!J101 -> -0.0002632187488
J17: MB | K17: =Calcs1!T103 -> -358.2190139 | AE17: x | AF17: kx | AG17: k*sin | AH17: cos | AI17: x-a | AJ17: k(x-a) | AK17: cos | AL17: sin | AM17: V | AN17: V'
J18: Mmax (+) | K18: =AC28 -> 203.2082875 | L18: @ x = | M18: =AC29 -> 18.35365045 | AE18: =B4+B12/2 -> 20 | AF18: =N$5*AE18 -> 0.2236067977 | AG18: =N$5*SIN(AF18) -> 0.002479218688 | AH18: =COS(AF18) -> 0.9751039932 | AI18: =AE18-B$4 -> 10 | AJ18: =N$5*AI18 -> 0.1118033989 | AK18: =COS(AJ18) -> 0.9937565077 | AL18: =SIN(AJ18) -> 0.1115706207 | AM18: =AC$19*AH18-B$6*AL18/N$5-N$4*(1-AK18)/N$5^2 -> -3.954190298 | AN18: =-AC$19*AG18-B$6*AK18-N$4*AL18/N$5 -> -2.525001123
AA19: (RA - qA*P) | AC19: =K14-K16*B8 -> 13.86229595 | AE19: =AE18-AM18/AN18 -> 18.43398474 | AF19: 0.2060982148 | AG19: 0.00228796998 | AH19: 0.9788368337 | AI19: 8.433984737 | AJ19: 0.09429481597 | AK19: 0.995557537 | AL19: 0.09415514083 | AM19: =AC$19*AH19-B$6*AL19/N$5-N$4*(1-AK19)/N$5^2 -> -0.183521546 | AN19: =-AC$19*AG19-B$6*AK19-N$4*AL19/N$5 -> -2.290497826
AE20: 18.35386174 | AF20: 0.2052024125 | AG20: 0.002278165646 | AH20: 0.9790197599 | AI20: 8.353861742 | AJ20: 0.09339901365 | AK20: 0.9956414819 | AL20: 0.09326328042 | AM20: -0.0004814279537 | AN20: -2.278480297
C21: Case 3 | D21: Both ends fixed | AE21: 18.35365045 | AF21: 0.2052000502 | AG21: 0.002278139788 | AH21: 0.9790202413 | AI21: 8.353650449 | AJ21: 0.09339665132 | AK21: 0.9956417022 | AL21: 0.09326092838 | AM21: -3.348342048e-09 | AN21: -2.278448603
AE22: 18.35365045 | AF22: 0.2052000502 | AG22: 0.002278139788 | AH22: 0.9790202413 | AI22: 8.353650447 | AJ22: 0.0933966513 | AK22: 0.9956417022 | AL22: 0.09326092837 | AM22: 2.753353101e-14 | AN22: -2.278448603
J23: RA | K23: =Calcs1!F158 -> 21.45635961 | M23: MA | N23: =Calcs1!J157 -> -209.0115694 | AE23: 18.35365045 | AF23: 0.2052000502 | AG23: 0.002278139788 | AH23: 0.9790202413 | AI23: 8.353650447 | AJ23: 0.0933966513 | AK23: 0.9956417022 | AL23: 0.09326092837 | AM23: 1.687538997e-14 | AN23: -2.278448603
J24: RB | K24: =K4-K23 -> 28.54364039 | M24: MB | N24: =Calcs1!O157 -> -250.7571852 | AE24: 18.35365045 | AF24: 0.2052000502 | AG24: 0.002278139788 | AH24: 0.9790202413 | AI24: 8.353650447 | AJ24: 0.0933966513 | AK24: 0.9956417022 | AL24: 0.09326092837 | AM24: 9.769962617e-15 | AN24: -2.278448603
J25: Mmax (+) | K25: =AC44 -> 149.855581 | L25: @ x = | M25: =AC45 -> 21.50814078 | AE25: 18.35365045 | AF25: 0.2052000502 | AG25: 0.002278139788 | AH25: 0.9790202413 | AI25: 8.353650447 | AJ25: 0.0933966513 | AK25: 0.9956417022 | AL25: 0.09326092837 | AM25: -1.278976924e-13 | AN25: -2.278448603
AE26: 18.35365045 | AF26: 0.2052000502 | AG26: 0.002278139788 | AH26: 0.9790202413 | AI26: 8.353650447 | AJ26: 0.0933966513 | AK26: 0.9956417022 | AL26: 0.09326092837 | AM26: 6.483702464e-14 | AN26: -2.278448603
AC27: =AC19*SIN(AF27)/N5-B6*(1-AK27)/N5^2-N4*(AJ27-AL27)/N5^3 -> 203.2082875 | AE27: 18.35365045 | AF27: 0.2052000502 | AG27: 0.002278139788 | AH27: 0.9790202413 | AI27: 8.353650447 | AJ27: 0.0933966513 | AK27: 0.9956417022 | AL27: 0.09326092837 | AM27: 3.641531521e-14 | AN27: -2.278448603
AB28: Mmax | AC28: =IF(AC19<0,"NA",AC27) -> 203.2082875
AB29: x | AC29: =IF(AC19<0,"NA",AE27) -> 18.35365045
C31: Case 4 | D31: Cantilever (right end fixed)
AE33: x | AF33: kx | AG33: k*sin | AH33: cos | AI33: x-a | AJ33: k(x-a) | AK33: cos | AL33: sin | AM33: V | AN33: V'
J34: RB | K34: =K4 -> 50 | AE34: =B4+B12/2 -> 20 | AF34: =N$5*AE34 -> 0.2236067977 | AG34: =N$5*SIN(AF34) -> 0.002479218688 | AH34: =COS(AF34) -> 0.9751039932 | AI34: =AE34-B$4 -> 10 | AJ34: =N$5*AI34 -> 0.1118033989 | AK34: =COS(AJ34) -> 0.9937565077 | AL34: =SIN(AJ34) -> 0.1115706207 | AM34: =AC$35*AH34-N$23*N$5*SIN(AF34)-B$6*AL34/N$5-N$4*(1-AK34)/N$5^2 -> 3.968996883 | AN34: =-AC$35*N$5*SIN(AF34)-N$23*N$5^2*AH34-B$6*AK34-N$4*AL34/N$5 -> -2.518352466
J35: qA | K35: =Calcs1!I204 -> 0.001224525497 | AA35: (RA - qA*P) | AC35: =K23 -> 21.45635961 | AE35: =AE34-AM34/AN34 -> 21.57602914 | AF35: 0.2412273393 | AG35: 0.002670922918 | AH35: =COS(AF35) -> 0.9710455016 | AI35: =AE35-B$4 -> 11.57602914 | AJ35: 0.1294239404 | AK35: =COS(AJ35) -> 0.9916364062 | AL35: =SIN(AJ35) -> 0.1290629224 | AM35: =AC$35*AH35-N$23*N$5*SIN(AF35)-B$6*AL35/N$5-N$4*(1-AK35)/N$5^2 -> -0.1866960265 | AN35: =-AC$35*N$5*SIN(AF35)-N$23*N$5^2*AH35-B$6*AK35-N$4*AL35/N$5 -> -2.755135528
J36: yA | K36: =Calcs1!I206 -> -0.03958073875 | AE36: =AE35-AM35/AN35 -> 21.50826623 | AF36: 0.2404697268 | AG36: 0.002662697043 | AH36: =COS(AF36) -> 0.9712262124 | AI36: 11.50826623 | AJ36: 0.1286663279 | AK36: 0.9917339013 | AL36: =SIN(AJ36) -> 0.1283116093 | AM36: -0.0003443502566 | AN36: -2.744971881
J37: MB | K37: =Calcs1!I213 -> -470.7059014 | AE37: 21.50814078 | AF37: 0.2404683242 | AG37: 0.002662681813 | AH37: 0.9712265464 | AI37: 11.50814078 | AJ37: 0.1286649254 | AK37: 0.9917340812 | AL37: 0.1283102184 | AM37: -1.180332276e-09 | AN37: -2.744953064
AE38: 21.50814078 | AF38: 0.2404683242 | AG38: 0.002662681813 | AH38: 0.9712265464 | AI38: 11.50814078 | AJ38: 0.1286649254 | AK38: 0.9917340812 | AL38: 0.1283102183 | AM38: 1.083577672e-13 | AN38: -2.744953064
AE39: 21.50814078 | AF39: 0.2404683242 | AG39: 0.002662681813 | AH39: 0.9712265464 | AI39: 11.50814078 | AJ39: 0.1286649254 | AK39: 0.9917340812 | AL39: 0.1283102183 | AM39: -6.927791674e-14 | AN39: -2.744953064
AE40: 21.50814078 | AF40: 0.2404683242 | AG40: 0.002662681813 | AH40: 0.9712265464 | AI40: 11.50814078 | AJ40: 0.1286649254 | AK40: 0.9917340812 | AL40: 0.1283102183 | AM40: -4.440892099e-14 | AN40: -2.744953064
AE41: 21.50814078 | AF41: 0.2404683242 | AG41: 0.002662681813 | AH41: 0.9712265464 | AI41: 11.50814078 | AJ41: 0.1286649254 | AK41: 0.9917340812 | AL41: 0.1283102183 | AM41: 1.10134124e-13 | AN41: -2.744953064
AE42: 21.50814078 | AF42: 0.2404683242 | AG42: 0.002662681813 | AH42: 0.9712265464 | AI42: 11.50814078 | AJ42: 0.1286649254 | AK42: 0.9917340812 | AL42: 0.1283102183 | AM42: -6.572520306e-14 | AN42: -2.744953064
AC43: =N23*AH43+(AC35*SIN(AF43)-O10*(1-AK43)-O11*(AJ43-AL43))/N5 -> 149.855581 | AE43: 21.50814078 | AF43: 0.2404683242 | AG43: 0.002662681813 | AH43: 0.9712265464 | AI43: 11.50814078 | AJ43: 0.1286649254 | AK43: 0.9917340812 | AL43: 0.1283102183 | AM43: -3.730349363e-14 | AN43: -2.744953064
AB44: Mmax | AC44: =IF(AC19<0,"NA",AC43) -> 149.855581
AB45: x | AC45: =IF(AC19<0,"NA",AE43) -> 21.50814078
D69: For a =0, b = L, wL = wa | G69: q = wa | H69: - uniformly distributed load over entire length
D71: Case 2
E72: 1/k | F72: =1/N5 -> 89.4427191 | G72: K
E73: a | F73: =B3*N5 -> 0.4472135955
E74: a/2 | F74: =F73/2 -> 0.2236067977
E75: tan(a/2) | F75: =TAN(F74) -> 0.227409653
E76: M_end | F76: =B6*B3^2*(1/F73*F75-0.5)/(1-F73/TAN(F73)) -> 201.3458361 | G76: (-)
E78: U | F78: =B6*F72^2-F76 -> 7798.654164
E79: V | F79: =B6*F72^2*F75+F76/TAN(F73) -> 2239.077359
E81: j0 | F81: =ATAN(F79/F78) -> 0.2795902426
E82: cos(j0) | F82: =COS(F81) -> 0.9611685964
E84: M_max (+) | F84: =B6*F72^2*(1/F82-1)-F76/F82 -> 113.7213525
E86: @ x = | F86: =B3-F72*F81 -> 14.99268847

Sheet Comp Special
M2: P | N2: 35000 | O2: pounds | Q2: k | R2: =SQRT(N2/(N3*N4)) -> 0.03115884764
M3: E | N3: 10300000 | O3: psi | U3: In "Airframe Stress Analysis and Sizing", M.C.Y. Niu, 3rd Ed., Hong Kong Conmilit Press Ltd., Figure 10.6.7, there are 20 Cases. The following compares the order of the Niu cases to the order of the Special Cases. | AA3: Case 1 | AC3: sin | AD3: cos | AE3: 1-cos | AF3: kx - sin | AG3: Fa4
M4: I | N4: 3.5 | O4: in4 | AA4: kL | AB4: =R2*N5 -> 0.6231769528 | AC4: =SIN(AB4) -> 0.5836178775 | AD4: =COS(AB4) -> 0.8120284312 | AE4: =1-AD4 -> 0.1879715688 | AF4: =AB4-AC4 -> 0.03955907538 | AG4: =AB4^2/2-AE4 -> 0.006203188494
M5: L | N5: 20 | O5: in | AA5: W | AB5: =N8*N5 -> 4000 | AD5: (RA - qA*P) | AE5: =P8-Q8*N2 -> 2067.341331
L7: Case | P7: R0 | Q7: qL (or qR) | R7: Mmax | AA7: Case 3 | AC7: sin | AD7: cos | AE7: 1-cos | AF7: kx - sin | AG7: Fa4
L8: 1 | M8: w | N8: 200 | O8: 1 | P8: =AB5/2 -> 2000 | Q8: =(N8*AG4/R2-P8*AF4)/(AC4*N2) -> -0.00192403802 | R8: =AE5*AC18/R2-N8*AE18/R2^2 -> 10421.15697 | U8: Niu | V8: Special | X8: Special | Y8: Niu | AA8: k*(L - a) | AB8: =R2*(N5-N11) -> 0.5297004099 | AC8: =SIN(AB8) -> 0.5052748301 | AD8: =COS(AB8) -> 0.8629584846 | AE8: =1-AD8 -> 0.1370415154 | AF8: =AB8-AC8 -> 0.02442557984 | AG8: =AB8^2/2-AE8 -> 0.003249746701
L9: 2 | M9: W | N9: 500 | O9: 2 | P9: =N9/2 -> 250 | Q9: =-N9/N2*(AC18/AC4-0.5) -> -0.0003613438615 | R9: =(P9-Q9*N2)*AC18/R2 -> 2584.176663 | U9: 1 | V9: 1 | X9: 1 | Y9: 1 | AD9: (RA - qA*P) | AE9: =P11-Q11*N2 -> 432.8815562
L10: 3 | M10: W | N10: 500 | U10: 2 | V10: 17 | X10: 2 | Y10: 5 | AA10: =IF(N11>PI()/(2*R2),PI()/(2*R2),N11) -> 3 | AB10: =R2*AA10 -> 0.09347654293 | AC10: =SIN(AB10) -> 0.0933404715 | AD10: =COS(AB10) -> 0.9956342483 | AE10: =1-AD10 -> 0.004365751704 | AF10: =AB10-AC10 -> 0.0001360714255 | AG10: =AB10^2/2-AE10 -> 3.180334757e-06
M11: a | N11: 3 | O11: 3 | P11: =N10*(N5-N11)/N5 -> 425 | Q11: =-N10/N2*(AC8/AC4-(N5-N11)/N5) -> -0.0002251873208 | R11: =(AE9*AC10-N10*AC11)/R2 -> 1296.754265 | U11: 3 | V11: DL Case 1 | X11: 3 | Y11: 7 | AA11: =AA10-N11 -> 0 | AB11: =R2*AA11 -> 0 | AC11: =SIN(AB11) -> 0 | AD11: =COS(AB11) -> 1 | AE11: =1-AD11 -> 0 | AF11: =AB11-AC11 -> 0 | AG11: =AB11^2/2-AE11 -> 0
L12: 4 | M12: w | N12: 200 | O12: 4 | P12: =AC13*(N5-AE13)/N5 -> 666.6666667 | Q12: =-N12/(R2*N2)*(AF4/(AB4*AC4)-R2*N5/6) -> -0.0008998006666 | R12: =N12/R2^2*(AC15/AC4-AB15/N5) -> 8026.576993 | U12: 4 | V12: 15 | X12: 4 | Y12: 8
L13: 5 | M13: w | N13: 200 | O13: 5 | P13: =AB19/2 -> 1000 | Q13: =(N13*N5/(4*N2)-(P13/N2+2*N13/(N5*R2^2*N2))*AE18)/AD18 -> -0.00120330562 | R13: =((P13-Q13*N2)*AC18-2*N13/(N5*R2^2)*AF18)/R2 -> 6936.157063 | U13: 5 | V13: 2 | X13: 4 | Y13: 9 | AA13: Case 4 | AB13: W | AC13: =N12*N5/2 -> 2000 | AD13: Xcg | AE13: =(N12*(2*N5))*N5/(6*AC13) -> 13.33333333
L14: 6 | M14: w | N14: 200 | O14: 6 | P14: =N14*N5/2 -> 2000 | Q14: ML = MR = | R14: =-N14*(1-AB18/TAN(AB18))/R2^2 -> -6710.219507 | U14: 6 | V14: 16 | X14: 5 | Y14: 17 | AD14: (RA - qA*P) | AE14: =P12-Q12*N2 -> 698.15969
Q15: +M = | R15: =N14*(AB18/AC18-1)/R2^2 -> 3371.479932 | U15: 7 | V15: 3 | X15: 6 | Y15: 12 | AB15: =ACOS(AC4/AB4)/R2 -> 11.49676372 | AC15: =R2*AB15 -> 0.358225909
L16: 7 | M16: W | N16: 500 | O16: 7 | P16: =N16/2 -> 250 | Q16: ML = MR = | R16: =-N16*TAN(AB4/4)/(2*R2) -> -1260.21243 | U16: 8 | V16: 4 | X16: 7 | Y16: 13
Q17: +M = | R17: =-R16 -> 1260.21243 | U17: 9 | V17: 4 | X17: 8 | Y17: 14 | AA17: Case 5 | AC17: sin | AD17: cos | AE17: 1-cos | AF17: kx - sin
L18: 8 | M18: M1 | N18: 1000 | O18: 8 | P18: =-N18/N5 -> -50 | Q18: =N18*(AB4*AD22/AC4-1)/(N2*N5) -> -0.0001122114814 | U18: 10 | V18: 14 | X18: 9 | Y18: 15 | AA18: kL/2 | AB18: =R2*N5/2 -> 0.3115884764 | AC18: =SIN(AB18) -> 0.3065710104 | AD18: =COS(AB18) -> 0.9518477901 | AE18: =1-AD18 -> 0.04815220985 | AF18: =AB18-AC18 -> 0.005017466064
M19: a | N19: 3 | Q19: MaL = | R19: =(P18-Q18*N2)*AC23/R2 -> -138.0165943 | U19: 11 | V19: 13 | X19: 10 | Y19: 16 | AA19: W | AB19: =N5*N13/2 -> 2000
Q20: MaR = | R20: =R19+N18 -> 861.9834057 | U20: 12 | V20: 6 | X20: 11 | Y20: 18
L21: 9 | M21: W | N21: 500 | O21: 9 | P21: =N21*(AC4*AE26-AD4*AF26)/(AC4*AE4-AD4*AF4) -> 15.70908728 | Q21: =-N21*(AF4*AE26-AE4*AF26)/(AC4*AE4-AD4*AF4)/N2 -> -2.709215232e-05 | U21: 13 | V21: 7 | X21: 12 | Y21: 19 | AA21: Case 8 | AC21: sin | AD21: cos | AE21: 1-cos | AF21: kx - sin
M22: a | N22: 3 | Q22: M0 = | R22: =-N21/R2*(AB4*AC27-AB27*AC4)/(AC4-AB4*AD4) -> -1185.818254 | U22: 14 | V22: 8 | X22: 13 | Y22: 11 | AA22: k*(L - a) | AB22: =R2*(N5-N19) -> 0.5297004099 | AC22: =SIN(AB22) -> 0.5052748301 | AD22: =COS(AB22) -> 0.8629584846 | AE22: =1-AD22 -> 0.1370415154 | AF22: =AB22-AC22 -> 0.02442557984
Q23: Ma = | R23: =(P21-Q21*N2)*AC27/R2 -> 270.1165619 | U23: 15 | V23: 9 | X23: 14 | Y23: 10 | AA23: k*a | AB23: =R2*N19 -> 0.09347654293 | AC23: =SIN(AB23) -> 0.0933404715
L24: 10 | M24: w | N24: 200 | O24: 10 | P24: =N24*N5-N24/R2*(AB4*AC4-1+(1-AB4^2/2)*AD4)/(AC4-AB4*AD4) -> 2506.591445 | Q24: =N24/(R2*N2)*(4-2*AB4*AC4-(2-AB4^2/2)*(1+AD4))/(AC4-AB4*AD4) -> 0.0009429514004 | R24: =-N24*N5/R2*(TAN(AB4)*(TAN(AB4/2)-AB4/2))/(TAN(AB4)-AB4) -> -10131.82891 | U24: 16 | V24: 10 | X24: 15 | Y24: 4
L25: 11 | M25: w | N25: 200 | O25: 11 | P25: =N25*N5 -> 4000 | Q25: =N25/(R2*N2)*(AB4/AD4-TAN(AB4)) -> 0.008934195686 | R25: =-N25/(R2^2)*(1+AB4*TAN(AB4)-1/AD4) -> -44579.08221 | U25: 17 | V25: 5 | X25: 16 | Y25: 6 | AA25: Case9 | AC25: sin | AD25: cos | AE25: 1-cos | AF25: kx - sin
L26: 12 | M26: W | N26: 500 | O26: 12 | P26: =N26 -> 500 | Q26: =N26/N2*AE4/AD4 -> 0.003306913924 | R26: =-N26/R2*TAN(AB4) -> -11533.09762 | U26: 18 | V26: 11 | X26: 17 | Y26: 2 | AA26: k*a | AB26: =R2*N22 -> 0.09347654293 | AC26: =SIN(AB26) -> 0.0933404715 | AD26: =COS(AB26) -> 0.9956342483 | AE26: =1-AD26 -> 0.004365751704 | AF26: =AB26-AC26 -> 0.0001360714255
L27: 13 | M27: M1 | N27: 500 | O27: 13 | P27: 0 | Q27: =-N27*R2/N2*AE4/AC4 -> -0.0001433662504 | R27: =N27*AD18-Q27*N2/R2*AC18 -> 525.2940703 | U27: 19 | V27: 12 | X27: 18 | Y27: 20 | AA27: k*(L-a) | AB27: =R2*(N5-N22) -> 0.5297004099 | AC27: =SIN(AB27) -> 0.5052748301 | AD27: =COS(AB27) -> 0.8629584846 | AE27: =1-AD27 -> 0.1370415154 | AF27: =AB27-AC27 -> 0.02442557984
L28: 14 | M28: M1 | N28: 500 | U28: 20 | V28: 18 | X28: DL Case 1 | Y28: 3
M29: M2 | N29: 250 | O29: 14 | P29: =(N29-N28)/N5 -> -12.5 | Q29: =-(N28*R2*AE4+P29*AF4)/(AC4*N2) -> -0.0001191582168 | R29: =AD29 -> 500 | AA29: Case14 | AB29: =ATAN((P29-Q29*N2)/(N28*R2))/R2 -> -15.75725898 | AC29: =IF(AB29>N5,N5,IF(AB29<0,0,AB29)) -> 0 | AD29: =N28*COS(R2*AC29)+(P29-Q29*N2)*SIN(R2*AC29)/R2 -> 500
L30: 15 | M30: w | N30: 200
M31: a | N31: 2.5 | O31: 15 | P31: =N30*(N5-2*N31)/2 -> 1500 | Q31: =(N30*AF32/R2-P31*AE18)/(N2*AD18) -> -0.001759363952 | R31: =(P31-Q31*N2)*AC18/R2-N30*AE32/R2^2 -> 9764.87134 | AA31: Case15 | AC31: sin | AD31: cos | AE31: 1-cos | AF31: kx - sin
L32: 16 | M32: W | N32: 500 | AA32: kb/2 | AB32: =R2*(N5-2*N31)/2 -> 0.2336913573 | AC32: =SIN(AB32) -> 0.2315701127 | AD32: =COS(AB32) -> 0.9728182168 | AE32: =1-AD32 -> 0.02718178322 | AF32: =AB32-AC32 -> 0.002121244595
M33: a | N33: 2 | O33: 16 | P33: =N32 -> 500 | Q33: =-N32/N2*((AC35+AC36)/AC4-1) -> -0.0002588166743 | R33: =(P33-Q33*N2)*AC18/R2-N32*AC37/R2 -> 1049.90828
L34: 17 | M34: w | N34: 100 | AA34: Case16 | AC34: sin | AD34: cos | AE34: 1-cos | AF34: kx - sin
M35: M1 | N35: 5000 | AA35: k(L - a) | AB35: =R2*(N5-N33) -> 0.5608592576 | AC35: =SIN(AB35) -> 0.5319140121 | AD35: =COS(AB35) -> 0.8467983725 | AE35: =1-AD35 -> 0.1532016275 | AF35: =AB35-AC35 -> 0.02894524546
M36: M2 | N36: 1000 | O36: 17 | P36: =AE52 -> 800 | Q36: =AF53 -> -0.002008352976 | R36: =AB73 -> 8553.265506 | T36: =(N36-N35)/N5+N34*N5/2 -> 800 | AA36: ka | AB36: =R2*N33 -> 0.06231769528 | AC36: =SIN(AB36) -> 0.06227736804 | AD36: =COS(AB36) -> 0.9980588807 | AE36: =1-AD36 -> 0.001941119257 | AF36: =AB36-AC36 -> 4.032724652e-05
AA37: k(L/2 - a) | AB37: =R2*(N5/2-N33) -> 0.2492707811 | AC37: =SIN(AB37) -> 0.2466973443
L38: 18 | M38: a | N38: 0.02 | O38: 18 | P38: =N38*N2*R2*AC46/(AE46^2-AC46*AF46) -> 1039.480498 | Q38: 0 | R38: =N38*N2*AC57/(2*(AC57-AB57)) -> 10744.80498
AA39: Case17 | AC39: sin | AD39: cos | AF39: wk^2
AA40: kL | AB40: =R2*N5 -> 0.6231769528 | AC40: =SIN(AB40) -> 0.5836178775 | AD40: =COS(AB40) -> 0.8120284312 | AF40: =N34*R2^2 -> 0.09708737864
AA41: M1 | AB41: =IF(N35>N36,N35,N36) -> 5000
AA42: M2 | AB42: =IF(N35>N36,N36,N35) -> 1000
AA43: kx | AB43: =ATAN(((AB42-AF40)-(AB41-AF40)*AD40)/((AB41-AF40)*AC40)) -> -0.8091680398 | AD43: =COS(AB43) -> 0.6901007724
AE44: Fa3
AC45: sin | AD45: cos | AE45: 1-cos | AF45: kx - sin | AG45: (kx)^2/2-Fa3
AA46: kL | AB46: =R2*N5 -> 0.6231769528 | AC46: =SIN(AB46) -> 0.5836178775 | AD46: =COS(AB46) -> 0.8120284312 | AE46: =1-AD46 -> 0.1879715688 | AF46: =AB46-AC46 -> 0.03955907538 | AG46: =AB46^2/2-AE46 -> 0.006203188494
AB48: =AC46/R2 -> 18.73040634 | AC48: =-AC46/R2 -> -18.73040634 | AE48: =N34*AE46/R2^2 -> 19361.07159 | AF48: =-AD46*N35 -> -4060.142156 | AG48: =AE48+AF48+N36 -> 16300.92943
AB49: =AF46/R2 -> 1.269593659 | AC49: =AB48 -> 18.73040634 | AE49: =N34*AG46/R2^2 -> 638.9284149 | AF49: =-N35*AE46 -> -939.8578439 | AG49: =AE49+AF49 -> -300.9294291
AB52: =MINVERSE(AB48:AC49) -> 0.05 | AC52: 0.05 | AE52: =MMULT(AB52:AC53,AG48:AG49) -> 800
AB53: -0.003389124709 | AC53: 0.05 | AE53: -70.29235416 | AF53: =AE53/N2 -> -0.002008352976
AA56: Case18 | AC56: tan
AA57: Lk/2 | AB57: =N5*R2/2 -> 0.3115884764 | AC57: =TAN(AB57) -> 0.3220798677
AA63: Ra - qa*P | AB63: =AE52-AE53 -> 870.2923542
AA64: w/k+M1/k | AB64: =N34/R2+N35*R2 -> 3365.155545
AA66: kx | AB66: =ATAN(AB63/AB64) -> 0.2530738434
AA67: x | AB67: =AB66/R2 -> 8.122054009
AA69: cos(kx) | AB69: =COS(AB66) -> 0.9681473645
AA70: sin(kx) | AB70: =SIN(AB66) -> 0.2503810708
AB72: =AB63*AB70/R2 -> 6993.350142 | AC72: =-N34*(1-AB69)/R2^2 -> -3280.821458 | AD72: =N35*AB69 -> 4840.736822
AA73: Mmax | AB73: =AB72+AC72+AD72 -> 8553.265506

Sheet Tens Force
A1: Concentrated Intermediate Load
A3: L | B3: 20 | I3: 1 | J3: 2 | K3: 3 | L3: 4
A4: a | B4: 8 | I4: cosh | J4: sinh | K4: cosh - 1 | L4: sinh - kx
A5: P | B5: 5000 | G5: k | H5: =SQRT(B5/(B7*B8)) -> 0.01177693743
A6: W | B6: 12000 | G6: kL | H6: =H5*B3 -> 0.2355387486 | I6: =COSH(H6) -> 1.027867733 | J6: =SINH(H6) -> 0.2377226874 | K6: =I6-1 -> 0.02786773278 | L6: =J6-H6 -> 0.002183938781 | M6: C
A7: E | B7: 10300000 | C7: psi | G7: k(L-a) | H7: =H5*(B3-B4) -> 0.1413232491 | I7: =COSH(H7) -> 1.010002762 | J7: =SINH(H7) -> 0.1417941433 | K7: =I7-1 -> 0.01000276191 | L7: =J7-H7 -> 0.0004708941254 | M7: Ca
A8: I | B8: 3.5 | C8: in4 | G8: ka | H8: =H5*B4 -> 0.09421549943 | I8: =COSH(H8) -> 1.004441564 | J8: =SINH(H8) -> 0.09435494623
A10: Point A at left end | H10: =B4 -> 8 | I10: =(E11+E12*B5)*J8/H5 -> 57345.74665 | J10: =IF(I10=I13,H10,0) -> 8
D11: RA | E11: =B6*(B3-B4)/B3 -> 7200
D12: qA | E12: =-B6/(B5*H5*B3)*(L6/J6*J7-L7) -> -0.008475110077
D13: Mmax | E13: =I13 -> 57345.74665 | F13: @ x = | G13: =J13 -> 8 | I13: =MAX(I10:I11) -> 57345.74665 | J13: =J10+J11 -> 8
D16: RA | E16: =B6*(J6*K7-I6*L7)/(J6*K6-I6*L6) -> 5188.684852
D17: qA | E17: =-B6/B5*(L6*K7-K6*L7)/(J6*K6-I6*L6) -> -0.004779552703
D18: MB | E18: =(E16+E17*B5)/H5*J6-B6/H5*J7 -> -40226.30296
D19: Ma | E19: =(E16+E17*B5)*J8/H5 -> 41379.45124
D21: RA | E21: =B6*(K6*K7-J6*L7)/(K6^2-J6*L6) -> 7775.616806 | J21: MA | K21: =-B6/H5*(L6*K7-K6*L7)/(K6^2-J6*L6) -> -34524.25611
D22: qA | E22: 0 | H22: =B4 -> 8 | I22: =K21*COSH(H5*H22)+E21*SINH(H$5*H22)/H$5 -> 27619.40513 | J22: MB | K22: =K21*I6+E21/H5*J6-B6/H5*J7 -> -23011.91999
D23: Mmax (-) | E23: =MIN(K21:K22) -> -34524.25611 | H23: =B3/2 -> 10 | I23: =K21*COSH(H5*H23)+E21*SINH(H5*H23)/H5-B6*SINH(H5*(H23-B4))/H5 -> 19169.86282
D24: Mmax (+) | E24: =MAX(I22:I24) -> 27619.40513 | H24: =B3-B4 -> 12 | I24: =K21*COSH(H5*H24)+E21*SINH(H5*H24)/H5-B6*SINH(H5*(H24-B4))/H5 -> 10730.95616
D27: RB | E27: =B6 -> 12000
D28: qA | E28: =B6/B5*K7/I6 -> 0.0233557566
D29: Mmax | E29: =E28*B5/H5*J6-B6/H5*J7 -> -142122.5818

Sheet Tens Moment
A1: Concentrated Intermediate Moment
A3: L | B3: 10 | I3: 1 | J3: 2 | K3: 3 | L3: 4
A4: a | B4: 3 | I4: cosh | J4: sinh | K4: cosh - 1 | L4: sinh - kx
A5: P | B5: 1500 | G5: k | H5: =SQRT(B5/(B7*B8)) -> 0.05396870722
A6: M0 | B6: 1000 | G6: kL | H6: =H5*B3 -> 0.5396870722 | I6: =COSH(H6) -> 1.1492003 | J6: =SINH(H6) -> 0.5662696605 | K6: =I6-1 -> 0.1492002995 | L6: =J6-H6 -> 0.02658258826 | M6: C
A7: E | B7: 10300000 | C7: psi | G7: k(L-a) | H7: =H5*(B3-B4) -> 0.3777809506 | I7: =COSH(H7) -> 1.072211961 | J7: =SINH(H7) -> 0.3868313444 | K7: =I7-1 -> 0.07221196085 | L7: =J7-H7 -> 0.009050393833 | M7: Ca
A8: I | B8: 0.05 | C8: in4 | G8: ka | H8: =H5*B4 -> 0.1619061217 | I8: =COSH(H8) -> 1.013135452 | J8: =SINH(H8) -> 0.1626144062
H10: =B4 -> 3 | I10: =(E11+E12*B5)*J8/H5 -> -307.9047378 | J10: =IF(I10=I13,H10,0) -> 0
D11: RA | E11: =-B6/B3 -> -100
D12: qA | E12: =B6*H5/B5*(1/H6-I7/J6) -> -0.001458583468
D13: Mmax (-) | E13: =(E11+E12*B5)/H5*J8 -> -307.9047378
D14: Mmax (+) | E14: =E13+B6 -> 692.0952622
D17: RA | E17: =-B6*H5*(J6*J7-I6*K7)/(J6*K6-I6*L6) -> -136.1400769
D18: qA | E18: =-B6*H5/B5*(K6*K7-L6*J7)/(J6*K6-I6*L6) -> -0.0003275595634
D19: Mmax (-) | E19: =(E17+E18*B5)/H5*J8 -> -411.6873975
D20: Mmax (+) | E20: =B6+E19 -> 588.3126025
D23: RA | E23: =-B6*H5*(K6*J7-J6*K7)/(K6^2-J6*L6) -> -125.9694543 | F23: MA | G23: =-B6*(K6*K7-L6*J7)/(K6^2-J6*L6) -> -68.1299058
D24: qA | E24: 0 | F24: MB | G24: =E23*B3+G23+B6 -> -327.8244492
D25: Mmax (-) | E25: =MIN(G25:G26) -> -448.5864073 | F25: =B4 -> 3 | G25: =G23*I8+E23/H5*J8 -> -448.5864073
D26: Mmax (+) | E26: =MAX(G25:G26) -> 551.4135927 | F26: =F25 -> 3 | G26: =G25+B6 -> 551.4135927
D29: RB | E29: 0
D30: qA | E30: =-B6*H5/B5*J7/I6 -> -0.01211090737
D31: Mmax | E31: =E30*B5/H5*J6+B6*I7 -> 881.6004076

Sheet Tens Distributed
A1: Distributed Load
O2: =(K14+K16*B8)/N5*T5-B6/N5^2*(COSH(N5*(B3-B4))-1)-N4/N5^3*(SINH(N5*(B3-B4))-N5*(B3-B4)) -> -1133.041663 | AE2: x | AF2: kx | AG2: k*sinh | AH2: cosh | AI2: x-a | AJ2: k(x-a) | AK2: cosh | AL2: sinh | AM2: V | AN2: V'
A3: L | B3: 40 | AE3: =B4+B12/2 -> 20 | AF3: =N$5*AE3 -> 0.2236067977 | AG3: =N$5*SINH(AF3) -> 0.002520885479 | AH3: =COSH(AF3) -> 1.02510434 | AI3: =AE3-B$4 -> 10 | AJ3: =N$5*AI3 -> 0.1118033989 | AK3: =COSH(AJ3) -> 1.006256513 | AL3: =SINH(AJ3) -> 0.1120364682 | AM3: =AC$9*AH3-O$10*AL3-O$11*(AK3-1) -> 4.978520727 | AN3: =AC$9*AG3-(O$10*AK3+O$11*AL3)*N$5 -> -2.454034925
A4: a | B4: 10 | C4: Case 1 | J4: W | K4: =B12*(B6+B7)/2 -> 50 | M4: Q | N4: =B13/B12 -> 0.15 | O4: (wb-wa)/(b - a) | AE4: =AE3-AM3/AN3 -> 22.02870818 | AF4: 0.2462884447 | AG4: 0.002781510935 | AH4: =COSH(AF4) -> 1.030482617 | AI4: 12.02870818 | AJ4: 0.1344850459 | AK4: =COSH(AJ4) -> 1.009056752 | AL4: =SINH(AJ4) -> 0.1348908005 | AM4: =AC$9*AH4-O$10*AL4-O$11*(AK4-1) -> -0.3078337105 | AN4: =AC$9*AG4-(O$10*AK4+O$11*AL4)*N$5 -> -2.757735916
A5: b | B5: 30 | J5: RA | K5: =K4*(B3-B14)/B3 -> 22.5 | M5: k | N5: =SQRT(B8/(B9*B10)) -> 0.01118033989 | AE5: 21.91708266 | AF5: 0.2450404335 | AG5: 0.002767134578 | AH5: 1.030172932 | AI5: 11.91708266 | AJ5: 0.1332370346 | AK5: 1.008889192 | AL5: 0.133631591 | AM5: -0.0009346792251 | AN5: -2.740989936
A6: wa | B6: 1 | J6: RB | K6: =K4-K5 -> 27.5 | AE6: 21.91674166 | AF6: 0.245036621 | AG6: 0.002767090666 | AH6: 1.030171989 | AI6: 11.91674166 | AJ6: 0.1332332221 | AK6: 1.008888683 | AL6: 0.1336277446 | AM6: -8.721041667e-09 | AN6: -2.740938785
A7: wb | B7: 4 | J7: qA | K7: =Calcs2!F43 -> -0.0005440078602 | AE7: 21.91674165 | AF7: 0.2450366209 | AG7: 0.002767090666 | AH7: 1.030171989 | AI7: 11.91674165 | AJ7: 0.1332332221 | AK7: 1.008888683 | AL7: 0.1336277446 | AM7: -5.684341886e-14 | AN7: -2.740938785
A8: P | B8: 1000 | J8: Mmax | K8: =AC11 -> 372.5797057 | L8: @ x = | M8: =AC12 -> 21.91674165 | AE8: 21.91674165 | AF8: 0.2450366209 | AG8: 0.002767090666 | AH8: 1.030171989 | AI8: 11.91674165 | AJ8: 0.1332332221 | AK8: 1.008888683 | AL8: 0.1336277446 | AM8: 2.291500323e-13 | AN8: -2.740938785
A9: E | B9: 80000 | C9: psi | AA9: (RA +qA*P) | AC9: =K5+K7*B8 -> 21.95599214 | AE9: 21.91674165 | AF9: 0.2450366209 | AG9: 0.002767090666 | AH9: 1.030171989 | AI9: 11.91674165 | AJ9: 0.1332332221 | AK9: 1.008888683 | AL9: 0.1336277446 | AM9: -1.136868377e-13 | AN9: -2.740938785
A10: I | B10: 100 | C10: in4 | N10: wa/k | O10: =B6/N5 -> 89.4427191 | AC10: =AC9*SINH(AF15)/N$5-B$6*(AK15-1)/N$5^2-N$4*(AL15-AJ15)/N$5^3 -> 372.5797057 | AE10: 21.91674165 | AF10: 0.2450366209 | AG10: 0.002767090666 | AH10: 1.030171989 | AI10: 11.91674165 | AJ10: 0.1332332221 | AK10: 1.008888683 | AL10: 0.1336277446 | AM10: -7.815970093e-14 | AN10: -2.740938785
N11: Q/k2 | O11: =N4/N5^2 -> 1200 | AB11: Mmax | AC11: =IF(AC9<0,"NA",AC10) -> 372.5797057 | AE11: 21.91674165 | AF11: 0.2450366209 | AG11: 0.002767090666 | AH11: 1.030171989 | AI11: 11.91674165 | AJ11: 0.1332332221 | AK11: 1.008888683 | AL11: 0.1336277446 | AM11: -4.97379915e-14 | AN11: -2.740938785
A12: b - a | B12: =B5-B4 -> 20 | AB12: x | AC12: =IF(AC2<0,"NA",AE9) -> 21.91674165 | AE12: 21.91674165 | AF12: 0.2450366209 | AG12: 0.002767090666 | AH12: 1.030171989 | AI12: 11.91674165 | AJ12: 0.1332332221 | AK12: 1.008888683 | AL12: 0.1336277446 | AM12: -3.197442311e-14 | AN12: -2.740938785
A13: wb-wa | B13: =B7-B6 -> 3 | C13: Case 2 | AE13: 21.91674165 | AF13: 0.2450366209 | AG13: 0.002767090666 | AH13: 1.030171989 | AI13: 11.91674165 | AJ13: 0.1332332221 | AK13: 1.008888683 | AL13: 0.1336277446 | AM13: 2.451372438e-13 | AN13: -2.740938785
A14: Xcg | B14: =(B6*(B5+2*B4)+B7*(2*B5+B4))*B12/(6*K4) -> 22 | J14: RA | K14: =Calcs2!F102 -> 13.68120677 | AE14: 21.91674165 | AF14: 0.2450366209 | AG14: 0.002767090666 | AH14: 1.030171989 | AI14: 11.91674165 | AJ14: 0.1332332221 | AK14: 1.008888683 | AL14: 0.1336277446 | AM14: -3.730349363e-13 | AN14: -2.740938785
J15: RB | K15: =K4-K14 -> 36.31879323 | AE15: 21.91674165 | AF15: 0.2450366209 | AG15: 0.002767090666 | AH15: 1.030171989 | AI15: 11.91674165 | AJ15: 0.1332332221 | AK15: 1.008888683 | AL15: 0.1336277446 | AM15: 2.913225217e-13 | AN15: -2.740938785
J16: qA | K16: =Calcs2!J101 -> -0.0002566521956
J17: MB | K17: =Calcs2!T103 -> -350.6188032 | AE17: x | AF17: kx | AG17: k*sinh | AH17: cosh | AI17: x-a | AJ17: k(x-a) | AK17: cosh | AL17: sinh | AM17: V | AN17: V'
J18: Mmax (+) | K18: =AC28 -> 198.6276771 | L18: @ x = | M18: =AC29 -> 18.40061611 | AE18: =B4+B12/2 -> 20 | AF18: =N$5*AE18 -> 0.2236067977 | AG18: =N$5*SINH(AF18) -> 0.002520885479 | AH18: =COSH(AF18) -> 1.02510434 | AI18: =AE18-B$4 -> 10 | AJ18: =N$5*AI18 -> 0.1118033989 | AK18: =COSH(AJ18) -> 1.006256513 | AL18: =SINH(AJ18) -> 0.1120364682 | AM18: =AC$19*AH18-O$10*AL18-O$11*(AK18-1) -> -3.767092953 | AN18: =AC$19*AG18-(O$10*AK18+O$11*AL18)*N$5 -> -2.475541702
AA19: (RA + qA*P) | AC19: =K14+K16*B8 -> 13.42455457 | AE19: =AE18-AM18/AN18 -> 18.4782753 | AF19: 0.2065933984 | AG19: =N$5*SINH(AF19) -> 0.002326250099 | AH19: =COSH(AF19) -> 1.021416426 | AI19: 8.478275301 | AJ19: 0.09478999952 | AK19: =COSH(AJ19) -> 1.004495937 | AL19: =SINH(AJ19) -> 0.09493201361 | AM19: =AC$19*AH19-O$10*AL19-O$11*(AK19-1) -> -0.1740411233 | AN19: =AC$19*AG19-(O$10*AK19+O$11*AL19)*N$5 -> -2.246913679
C20: Case 3 | D20: Both ends fixed | J20: RA | K20: =Calcs2!F158 -> 21.17553132 | M20: MA | N20: =Calcs2!J157 -> -203.9317052 | AE20: 18.40081744 | AF20: 0.2057273932 | AG20: 0.002316361378 | AH20: 1.021236623 | AI20: 8.400817441 | AJ20: 0.09392399433 | AK20: 1.004414102 | AL20: 0.0940621504 | AM20: -0.000450022532 | AN20: -2.235294157
J21: RB | K21: =K4-K20 -> 28.82446868 | M21: MB | N21: =Calcs2!O157 -> -256.9104524 | AE21: 18.40061612 | AF21: 0.2057251423 | AG21: 0.002316335678 | AH21: 1.021236157 | AI21: 8.400616116 | AJ21: 0.09392174344 | AK21: 1.00441389 | AL21: 0.09405988957 | AM21: -3.039872354e-09 | AN21: -2.235263958
J22: Mmax (+) | K22: =AC48 -> 355.4213249 | L22: @ x = | M22: =AC49 -> 21.62125083 | AE22: 18.40061611 | AF22: 0.2057251423 | AG22: 0.002316335678 | AH22: 1.021236157 | AI22: 8.400616114 | AJ22: 0.09392174342 | AK22: 1.00441389 | AL22: 0.09405988956 | AM22: 3.019806627e-14 | AN22: -2.235263957
AE23: 18.40061611 | AF23: 0.2057251423 | AG23: 0.002316335678 | AH23: 1.021236157 | AI23: 8.400616114 | AJ23: 0.09392174342 | AK23: 1.00441389 | AL23: 0.09405988956 | AM23: 1.598721155e-14 | AN23: -2.235263957
AE24: 18.40061611 | AF24: 0.2057251423 | AG24: 0.002316335678 | AH24: 1.021236157 | AI24: 8.400616114 | AJ24: 0.09392174342 | AK24: 1.00441389 | AL24: 0.09405988956 | AM24: 7.105427358e-15 | AN24: -2.235263957
AE25: 18.40061611 | AF25: 0.2057251423 | AG25: 0.002316335678 | AH25: 1.021236157 | AI25: 8.400616114 | AJ25: 0.09392174342 | AK25: 1.00441389 | AL25: 0.09405988956 | AM25: 0 | AN25: -2.235263957
AE26: 18.40061611 | AF26: 0.2057251423 | AG26: 0.002316335678 | AH26: 1.021236157 | AI26: 8.400616114 | AJ26: 0.09392174342 | AK26: 1.00441389 | AL26: 0.09405988956 | AM26: 0 | AN26: -2.235263957
AC27: =AC19*SINH(AF29)/N$5-B$6*(AK29-1)/N$5^2-N$4*(AL29-AJ29)/N$5^3 -> 198.6276771 | AE27: 18.40061611 | AF27: 0.2057251423 | AG27: 0.002316335678 | AH27: 1.021236157 | AI27: 8.400616114 | AJ27: 0.09392174342 | AK27: 1.00441389 | AL27: 0.09405988956 | AM27: 0 | AN27: -2.235263957
AB28: Mmax | AC28: =IF(AC19<0,"NA",AC27) -> 198.6276771 | AE28: 18.40061611 | AF28: 0.2057251423 | AG28: 0.002316335678 | AH28: 1.021236157 | AI28: 8.400616114 | AJ28: 0.09392174342 | AK28: 1.00441389 | AL28: 0.09405988956 | AM28: 0 | AN28: -2.235263957
C29: Case 4 | D29: Cantilever (right end fixed) | J29: RB | K29: =K4 -> 50 | AB29: x | AC29: =IF(AC19<0,"NA",AE27) -> 18.40061611 | AE29: 18.40061611 | AF29: 0.2057251423 | AG29: 0.002316335678 | AH29: 1.021236157 | AI29: 8.400616114 | AJ29: 0.09392174342 | AK29: 1.00441389 | AL29: 0.09405988956 | AM29: 0 | AN29: -2.235263957
J30: qA | K30: =Calcs2!I204 -> 0.001002888092
J31: yA | K31: =Calcs2!I206 -> -0.03366453047
J32: MB | K32: =Calcs2!I213 -> -395.7556663
AE33: x | AF33: kx | AG33: k*sinh | AH33: cosh | AI33: x-a | AJ33: k(x-a) | AK33: cosh | AL33: sinh | AM33: V | AN33: V'
AE34: =B4+B12/2 -> 20 | AF34: =N$5*AE34 -> 0.2236067977 | AG34: =N$5*SINH(AF34) -> 0.002520885479 | AH34: =COSH(AF34) -> 1.02510434 | AI34: =AE34-B$4 -> 10 | AJ34: =N$5*AI34 -> 0.1118033989 | AK34: =COSH(AJ34) -> 1.006256513 | AL34: =SINH(AJ34) -> 0.1120364682 | AM34: =AC$35*AH34-O$10*AL34-O$11*(AK34-1) -> 4.178466954 | AN34: =AC$35*AG34-(O$10*AK34+O$11*AL34)*N$5 -> -2.456002377
AA35: (RA + qA*P) | AC35: =K20 -> 21.17553132 | AE35: =AE34-AM34/AN34 -> 21.70132855 | AF35: 0.2426282292 | AG35: =N$5*SINH(AF35) -> 0.002739359595 | AH35: =COSH(AF35) -> 1.029578908 | AI35: 11.70132855 | AJ35: 0.1308248303 | AK35: =COSH(AJ35) -> 1.00856978 | AL35: =SINH(AJ35) -> 0.1311983306 | AM35: =AC$35*AH35-O$10*AL35-O$11*(AK35-1) -> -0.2165914952 | AN35: =AC$35*AG35-(O$10*AK35+O$11*AL35)*N$5 -> -2.710772699
AE36: =AE35-AM35/AN35 -> 21.62142827 | AF36: 0.2417349169 | AG36: 0.002729077732 | AH36: 1.029360443 | AI36: 11.62142827 | AJ36: 0.129931518 | AK36: 1.008452982 | AL36: 0.130297415 | AM36: -0.0004788617399 | AN36: -2.698786574
AE37: 21.62125083 | AF37: 0.2417329331 | AG37: 0.002729054901 | AH37: 1.029359959 | AI37: 11.62125083 | AJ37: 0.1299295342 | AK37: 1.008452723 | AL37: 0.1302954145 | AM37: -2.361439044e-09 | AN37: -2.698759959
AE38: 21.62125083 | AF38: 0.2417329331 | AG38: 0.002729054901 | AH38: 1.029359959 | AI38: 11.62125083 | AJ38: 0.1299295342 | AK38: 1.008452723 | AL38: 0.1302954144 | AM38: 1.136868377e-13 | AN38: -2.698759959
AE39: 21.62125083 | AF39: 0.2417329331 | AG39: 0.002729054901 | AH39: 1.029359959 | AI39: 11.62125083 | AJ39: 0.1299295342 | AK39: 1.008452723 | AL39: 0.1302954144 | AM39: -1.971756092e-13 | AN39: -2.698759959
AE40: 21.62125083 | AF40: 0.2417329331 | AG40: 0.002729054901 | AH40: 1.029359959 | AI40: 11.62125083 | AJ40: 0.1299295342 | AK40: 1.008452723 | AL40: 0.1302954144 | AM40: 1.403321903e-13 | AN40: -2.698759959
AE41: 21.62125083 | AF41: 0.2417329331 | AG41: 0.002729054901 | AH41: 1.029359959 | AI41: 11.62125083 | AJ41: 0.1299295342 | AK41: 1.008452723 | AL41: 0.1302954144 | AM41: -1.758593271e-13 | AN41: -2.698759959
AE42: 21.62125083 | AF42: 0.2417329331 | AG42: 0.002729054901 | AH42: 1.029359959 | AI42: 11.62125083 | AJ42: 0.1299295342 | AK42: 1.008452723 | AL42: 0.1302954144 | AM42: 1.509903313e-13 | AN42: -2.698759959
AE43: 21.62125083 | AF43: 0.2417329331 | AG43: 0.002729054901 | AH43: 1.029359959 | AI43: 11.62125083 | AJ43: 0.1299295342 | AK43: 1.008452723 | AL43: 0.1302954144 | AM43: 9.947598301e-14 | AN43: -2.698759959
AE44: 21.62125083 | AF44: 0.2417329331 | AG44: 0.002729054901 | AH44: 1.029359959 | AI44: 11.62125083 | AJ44: 0.1299295342 | AK44: 1.008452723 | AL44: 0.1302954144 | AM44: -2.042810365e-13 | AN44: -2.698759959
AE45: 21.62125083 | AF45: 0.2417329331 | AG45: 0.002729054901 | AH45: 1.029359959 | AI45: 11.62125083 | AJ45: 0.1299295342 | AK45: 1.008452723 | AL45: 0.1302954144 | AM45: 1.350031198e-13 | AN45: -2.698759959
AE46: 21.62125083 | AF46: =N$5*AE46 -> 0.2417329331 | AG46: 0.002729054901 | AH46: 1.029359959 | AI46: =AE46-B$4 -> 11.62125083 | AJ46: =N$5*AI46 -> 0.1299295342 | AK46: 1.008452723 | AL46: 0.1302954144 | AM46: -1.758593271e-13 | AN46: -2.698759959
AE47: 21.62125083 | AF47: =N$5*AE47 -> 0.2417329331 | AG47: 0.002729054901 | AH47: 1.029359959 | AI47: =AE47-B$4 -> 11.62125083 | AJ47: =N$5*AI47 -> 0.1299295342 | AK47: 1.008452723 | AL47: 0.1302954144 | AM47: 1.456612608e-13 | AN47: -2.698759959
AB48: Mmax | AC48: =AC35*SINH(AF49)/N$5-B$6*(AK49-1)/N$5^2-N$4*(AL49-AJ49)/N$5^3 -> 355.4213249 | AE48: 21.62125083 | AF48: =N$5*AE48 -> 0.2417329331 | AG48: 0.002729054901 | AH48: 1.029359959 | AI48: =AE48-B$4 -> 11.62125083 | AJ48: =N$5*AI48 -> 0.1299295342 | AK48: 1.008452723 | AL48: 0.1302954144 | AM48: 9.947598301e-14 | AN48: -2.698759959
AB49: x | AC49: =AE49 -> 21.62125083 | AE49: 21.62125083 | AF49: =N$5*AE49 -> 0.2417329331 | AG49: 0.002729054901 | AH49: 1.029359959 | AI49: =AE49-B$4 -> 11.62125083 | AJ49: =N$5*AI49 -> 0.1299295342 | AK49: 1.008452723 | AL49: 0.1302954144 | AM49: -2.042810365e-13 | AN49: -2.698759959

Sheet Calcs1
A1: Distributed Load
A3: L | B3: ='Comp Distributed'!B3 -> 40 | I3: wa | J3: =B6 -> 1
A4: a | B4: ='Comp Distributed'!B4 -> 10 | I4: Q | J4: =(B7-B6)/(B5-B4) -> 0.15 | K4: (wb-wa)/(b - a)
A5: b | B5: ='Comp Distributed'!B5 -> 30 | I5: k | J5: =SQRT(B8/(B9*B10)) -> 0.01118033989
A6: wa | B6: ='Comp Distributed'!B6 -> 1 | L6: wa/k | M6: =J3/J5 -> 89.4427191 | N6: Z1
A7: wb | B7: ='Comp Distributed'!B7 -> 4 | L7: Q/k2 | M7: =J4/J5^2 -> 1200 | N7: Z2
A8: P | B8: ='Comp Distributed'!B8 -> 1000
A9: E | B9: ='Comp Distributed'!B9 -> 80000 | C9: psi
A10: I | B10: ='Comp Distributed'!B10 -> 100 | C10: in4
A12: b - a | B12: =B5-B4 -> 20
A13: wb-wa | B13: =B7-B6 -> 3
A14: W | B14: =(B6+B7)*(B5-B4)/2 -> 50
A15: Xcg | B15: =(B6*(B5+2*B4)+B7*(2*B5+B4))*B12/(6*B14) -> 22 | E15: CASE 1 ss/ss
E16: yA = yL = 0 | I16: RA | J16: =B14*(1-B15/B3) -> 22.5
E17: MA = ML = 0
E18: Based on length (L - b)
E19: yL = yb +qb/k*F2 + Mb/P*F3 + Vb/(kP)*F4 = 0
D20: or | E20: yb*k*P + qb*P*F2 + Mb*k*F3 + Vb*F4 = 0
E21: F2, F3, F4 are F2b, F3b, F4b (span b to L)
E23: Values at b for span 0 to b
E24: Vb = (RA-qA*P)*F1 - Z1*Fa2 - Z2*Fa3
E25: Mb*k = (RA-qA*P)*F2 - Z1*Fa3 - Z2*Fa4
E26: qb*P = qA*P*F1 + RA*F3 - Z1*Fa4 - Z2*Fa5
E27: yb*k*P = qA*P*F2 + RA*F4 - Z1*Fa5 - Z2*Fa6
E29: (qA*P*F2 + RA*F4 - Z1*Fa5 - Z2*Fa6)
E30: + (qA*P*F1 + RA*F3 - Z1*Fa4 - Z2*Fa5)*F2b
E31: + [(RA-qA*P)*F2 - Z1*Fa3 - Z2*Fa4]*F3b
E32: + [(RA-qA*P)*F1 - Z1*Fa2 - Z2*Fa3]*F4b = 0
E35: qA*P | F35: F2 + F1*F2b - F2*F3b - F1*F4b | J35: =Q39+P39*Q38-Q39*R38-P39*S38 -> 0.4322350322
E37: RA | F37: F4 + F3*F2b + F2*F3b + F1*F4b | J37: =S39+R39*Q38+Q39*R38+P39*S38 -> 0.01474578507 | K37: =J37*N42 -> 0.331780164 | N37: x | O37: kx | P37: F1 | Q37: F2 | R37: F3 | S37: F4 | T37: F5 | U37: F6
M38: L-b | N38: =B3-B5 -> 10 | O38: =J$5*N38 -> 0.1118033989 | P38: =COS(O38) -> 0.9937565077 | Q38: =SIN(O38) -> 0.1115706207 | R38: =1-P38 -> 0.006243492295 | S38: =O38-Q38 -> 0.0002327782136
E39: Z1 | F39: Fa5 + Fa4*F2b + Fa3*F3b + Fa2*F4b | J39: =T40+S40*Q38+R40*R38+Q40*S38 -> 0.0005184298006 | K39: =-J39*N43 -> -0.04636977103 | M39: b | N39: =B5 -> 30 | O39: =J$5*N39 -> 0.3354101966 | P39: =COS(O39) -> 0.9442753702 | Q39: =SIN(O39) -> 0.3291565361 | R39: =1-P39 -> 0.05572462982 | S39: =O39-Q39 -> 0.0062536605
M40: b-a | N40: =B12 -> 20 | O40: =J$5*N40 -> 0.2236067977 | P40: =COS(O40) -> 0.9751039932 | Q40: =SIN(O40) -> 0.2217480607 | R40: =1-P40 -> 0.02489600679 | S40: =O40-Q40 -> 0.001858737048 | T40: =O40^2/2-R40 -> 0.0001039932105 | U40: =O40^3/6-S40 -> 4.652932999e-06
E41: Z2 | F41: Fa6 + Fa5*F2b + Fa4*F3b + Fa3*F4b | J41: =U40+T40*Q38+S40*R38+R40*S38 -> 3.365577846e-05 | K41: =-J41*N44 -> -0.04038693416
M42: RA | N42: =B14*(B3-B15)/B3 -> 22.5
E43: qA*P | F43: =-(K37+K39+K41)/J35 -> -0.5668755204 | M43: Z1 | N43: =M$6 -> 89.4427191 | O43: wa/k
E44: qA | F44: =F43/B8 -> -0.0005668755204 | M44: Z2 | N44: =M$7 -> 1200 | O44: Q/k2
E48: CASE 2 ss/fixed
E49: yA = yL = 0
E50: MA = qL = 0
E51: Based on length (L - b)
E52: yL = yb +qb/k*F2 + Mb/P*F3 + Vb/(kP)*F4 = 0
E53: yb*k*P + qb*P*F2 + Mb*k*F3 + Vb*F4 = 0
E54: F2, F3, F4 are F2b, F3b, F4b (span b to L)
E56: qL = qb*F1 + Mb*k/P*F2 + Vb/P*F3 = 0
E57: qb*P*F1 + Mb*k*F2 + Vb*F3 = 0
E59: Values at b for span 0 to b
E60: Vb = (RA-qA*P)*F1 - Z1*Fa2 - Z2*Fa3
E61: Mb*k = (RA-qA*P)*F2 - Z1*Fa3 - Z2*Fa4
E62: qb*P = qA*P*F1 + RA*F3 - Z1*Fa4 - Z2*Fa5
E63: yb*k*P = qA*P*F2 + RA*F4 - Z1*Fa5 - Z2*Fa6
E65: y equation | G65: yb*k*P + qb*P*F2 + Mb*k*F3 + Vb*F4 = 0
E66: (qA*P*F2 + RA*F4 - Z1*Fa5 - Z2*Fa6)
E67: + (qA*P*F1 + RA*F3 - Z1*Fa4 - Z2*Fa5)*F2b
E68: + [(RA-qA*P)*F2 - Z1*Fa3 - Z2*Fa4]*F3b
E69: + [(RA-qA*P)*F1 - Z1*Fa2 - Z2*Fa3]*F4b = 0
E71: y equation
E72: qA*P | F72: F2 + F1*F2b - F2*F3b - F1*F4b | J72: =Q76+P76*Q75-Q76*R75-P76*S75 -> 0.4322350322
E74: RA | F74: F4 + F3*F2b + F2*F3b + F1*F4b | J74: =S76+R76*Q75+Q76*R75+P76*S75 -> 0.01474578507 | N74: x | O74: kx | P74: F1 | Q74: F2 | R74: F3 | S74: F4 | T74: F5 | U74: F6
M75: L-b | N75: =B$3-B$5 -> 10 | O75: =J$5*N75 -> 0.1118033989 | P75: =COS(O75) -> 0.9937565077 | Q75: =SIN(O75) -> 0.1115706207 | R75: =1-P75 -> 0.006243492295 | S75: =O75-Q75 -> 0.0002327782136
E76: Z1 | F76: Fa5 + Fa4*F2b + Fa3*F3b + Fa2*F4b | J76: =T77+S77*Q75+R77*R75+Q77*S75 -> 0.0005184298006 | K76: =-J76*N80 -> -0.04636977103 | M76: b | N76: =B$5 -> 30 | O76: =J$5*N76 -> 0.3354101966 | P76: =COS(O76) -> 0.9442753702 | Q76: =SIN(O76) -> 0.3291565361 | R76: =1-P76 -> 0.05572462982 | S76: =O76-Q76 -> 0.0062536605
M77: b-a | N77: =B$5-B$4 -> 20 | O77: =J$5*N77 -> 0.2236067977 | P77: =COS(O77) -> 0.9751039932 | Q77: =SIN(O77) -> 0.2217480607 | R77: =1-P77 -> 0.02489600679 | S77: =O77-Q77 -> 0.001858737048 | T77: =O77^2/2-R77 -> 0.0001039932105 | U77: =O77^3/6-S77 -> 4.652932999e-06
E78: Z2 | F78: Fa6 + Fa5*F2b + Fa4*F3b + Fa3*F4b | J78: =U77+T77*Q75+S77*R75+R77*S75 -> 3.365577846e-05 | K78: =-J78*N81 -> -0.04038693416
M80: Z1 | N80: =M$6 -> 89.4427191 | O80: wa/k
E81: q equation | G81: qb*P*F1 + Mb*k*F2 + Vb*F3 = 0 | M81: Z2 | N81: =M$7 -> 1200 | O81: Q/k2
E82: (qA*P*F1 + RA*F3 - Z1*Fa4 - Z2*Fa5)*F1b
E83: + [(RA-qA*P)*F2 - Z1*Fa3 - Z2*Fa4]*F2b
E84: + [ (RA-qA*P)*F1 - Z1*Fa2 - Z2*Fa3]*F3b = 0
E86: qA*P | F86: F1*F1b - F2*F2b - F1*F3b | J86: =P76*P75-Q76*Q75-P76*R75 -> 0.8957600192
E88: RA | F88: F3*F1b + F2*F2b + F1*F3b | J88: =R76*P75+Q76*Q75+P76*R75 -> 0.09799648855
E90: Z1 | F90: Fa4*F1b + Fa3*F2b + Fa2*F3b | J90: =S77*P75+R77*Q75+Q77*R75 -> 0.006009277276 | K90: =-J90*N80 -> -0.5374860994
E92: Z2 | F92: Fa5*F1b + Fa4*F2b + Fa3*F3b | J92: =T77*P75+S77*Q75+R77*R75 -> 0.0004661624024 | K92: =-N81*J92 -> -0.5593948828 | N92: =T77 -> 0.0001039932105
N93: =S77*Q75 -> 0.0002073804461
F94: qA*P | G94: RA | N94: =R77*R75 -> 0.0001554380266 | P94: =R77 -> 0.02489600679 | Q94: =R75 -> 0.006243492295
E95: y | F95: =J72 -> 0.4322350322 | G95: =J74 -> 0.01474578507 | J95: =-K76-K78 -> 0.08675670519 | N95: =SUM(N92:N94) -> 0.0004668116832
E96: q | F96: =J86 -> 0.8957600192 | G96: =J88 -> 0.09799648855 | J96: =-K90-K92 -> 1.096880982
E98: inverse | F98: =MINVERSE(F95:G96) -> 3.361935498 | G98: -0.5058791288 | N98: Mb*k = [(RA - qA*P)*F2 - Z1*Fa3 - Z2*Fa4] | T98: =J102*Q76-N80*R77-N81*S77 -> 0.1056143193
F99: -30.73056443 | G99: 14.82855477 | N99: qb*P = qA*P*F1 + RA*F3 - [Z1*Fa4 + Z2*Fa5] | T99: =F101*P76+F102*R76-(N80*S77+N81*T77) -> 0.2182102134
N100: Vb = (RA - qA*P)*F1 - [Z1*Fa2 + Z2*Fa3] | T100: =J102*P76-(N80*Q77+N81*R77) -> -36.61913301
E101: qA*P | F101: =MMULT(F98:G99,J95:J96) -> -0.2632187488 | I101: qA | J101: =F101/B8 -> -0.0002632187488
E102: RA | F102: 13.59907721 | I102: RA - qA*P | J102: =F102-F101 -> 13.86229595 | N102: ML*k = Mb*k*F1b + (Vb - qb*P)*F2b | T102: =T98*P75+(T100-T99)*Q38 -> -4.00501033
N103: ML | T103: =T102/J5 -> -358.2190139
E105: CASE 3 fixed/fixed
E106: yA = yL = 0
E107: qA = qL = 0
E108: Based on length (L - b)
E109: yL = yb +qb/k*F2 + Mb/P*F3 + Vb/(kP)*F4 = 0
E110: yb*k*P + qb*P*F2 + Mb*k*F3 + Vb*F4 = 0
E111: F2, F3, F4 are F2b, F3b, F4b (span b to L)
E113: qL = qb*F1 + Mb*k/P*F2 + Vb/P*F3 = 0
E114: qb*P*F1 + Mb*k*F2 + Vb*F3 = 0
E116: Values at b for span 0 to b
E117: Vb = RA*F1 - MA*k*F2 - Z1*Fa2 - Z2*Fa3
E118: Mb*k = MA*k*F1 + RA*F2 - Z1*Fa3 - Z2*Fa4
E119: qb*P = MA*k*F2 + RA*F3 - Z1*Fa4 - Z2*Fa5
E120: yb*k*P = MA*k*F3 + RA*F4 - Z1*Fa5 - Z2*Fa6
E122: y equation | G122: yb*k*P + qb*P*F2 + Mb*k*F3 + Vb*F4 = 0
E123: (MA*k*F3 + RA*F4 - Z1*Fa5 - Z2*Fa6)
E124: + (MA*k*F2 + RA*F3 - Z1*Fa4 - Z2*Fa5)*F2b
E125: + (MA*k*F1 + RA*F2 - Z1*Fa3 - Z2*Fa4)*F3b
E126: +(RA*F1 - MA*k*F2 - Z1*Fa2 - Z2*Fa3)*F4b = 0
E128: y equation
E129: MA*k | F129: F3 + F2*F2b + F1*F3b - F2*F4b | J129: =R133+Q133*Q132+P133*R132-Q133*S132 -> 0.09826778438
E131: RA | F131: F4 + F3*F2b + F2*F3b + F1*F4b | J131: =S133+R133*Q132+Q133*R132+P133*S132 -> 0.01474578507 | N131: x | O131: kx | P131: F1 | Q131: F2 | R131: F3 | S131: F4 | T131: F5 | U131: F6
M132: L-b | N132: =B$3-B$5 -> 10 | O132: =J$5*N132 -> 0.1118033989 | P132: =COS(O132) -> 0.9937565077 | Q132: =SIN(O132) -> 0.1115706207 | R132: =1-P132 -> 0.006243492295 | S132: =O132-Q132 -> 0.0002327782136
E133: Z1 | F133: Fa5 + Fa4*F2b + Fa3*F3b + Fa2*F4b | J133: =T134+S134*Q132+R134*R132+Q134*S132 -> 0.0005184298006 | K133: =-J133*N137 -> -0.04636977103 | M133: b | N133: =B$5 -> 30 | O133: =J$5*N133 -> 0.3354101966 | P133: =COS(O133) -> 0.9442753702 | Q133: =SIN(O133) -> 0.3291565361 | R133: =1-P133 -> 0.05572462982 | S133: =O133-Q133 -> 0.0062536605
M134: b-a | N134: =B$5-B$4 -> 20 | O134: =J$5*N134 -> 0.2236067977 | P134: =COS(O134) -> 0.9751039932 | Q134: =SIN(O134) -> 0.2217480607 | R134: =1-P134 -> 0.02489600679 | S134: =O134-Q134 -> 0.001858737048 | T134: =O134^2/2-R134 -> 0.0001039932105 | U134: =O134^3/6-S134 -> 4.652932999e-06
E135: Z2 | F135: Fa6 + Fa5*F2b + Fa4*F3b + Fa3*F4b | J135: =U134+T134*Q132+S134*R132+R134*S132 -> 3.365577846e-05 | K135: =-J135*N138 -> -0.04038693416
E137: q equation | G137: qb*P*F1 + Mb*k*F2 + Vb*F3 = 0 | M137: Z1 | N137: =M$6 -> 89.4427191 | O137: wa/k
E138: (MA*k*F2 + RA*F3 - Z1*Fa4 - Z2*Fa5)*F1b | M138: Z2 | N138: =M$7 -> 1200 | O138: Q/k2
E139: + (MA*k*F1 + RA*F2 - Z1*Fa3 - Z2*Fa4)*F2b
E140: + (RA*F1 - MA*k*F2 - Z1*Fa2 - Z2*Fa3)*F3b = 0
E142: MA*k | F142: (F2*F1b + F1*F2b - F2*F3b) | J142: =Q133*P132+P133*Q132-Q133*R132 -> 0.4303997527
E144: RA | F144: F3*F1b + F2*F2b + F1*F3b | J144: =R133*P132+Q133*Q132+P133*R132 -> 0.09799648855
E146: Z1 | F146: Fa4*F1b + Fa3*F2b + Fa2*F3b | J146: =S134*P132+R134*Q132+Q134*R132 -> 0.006009277276 | K146: =-J146*N137 -> -0.5374860994
E148: Z2 | F148: Fa5*F1b + Fa4*F2b + Fa3*F3b | J148: =T134*P132+S134*Q132+R134*R132 -> 0.0004661624024 | K148: =-J148*N138 -> -0.5593948828
F150: MA*k | G150: RA
E151: y | F151: =J129 -> 0.09826778438 | G151: =J131 -> 0.01474578507 | J151: =-K133-K135 -> 0.08675670519
E152: q | F152: =J142 -> 0.4303997527 | G152: =J144 -> 0.09799648855 | J152: =-K146-K148 -> 1.096880982
V153: =V157+W153+X153 -> -0.9271578646 | W153: =F158*Q133 -> 7.062501006 | X153: =-(N137*R134+N138*S134) -> -4.457251
E154: inverse | F154: =MINVERSE(F151:G152) -> 29.84680781 | G154: -4.49112636
F155: -131.0869286 | G155: 29.92943643
E157: MA*k | F157: =MMULT(F154:G155,J151:J152) -> -2.336820387 | I157: MA | J157: =F157/J5 -> -209.0115694 | N157: ML | O157: =J157+F158*B3-B14*(B3-B15) -> -250.7571852 | V157: =V158*J5 -> -3.532407871
E158: RA | F158: 21.45635961 | V158: -315.9481649
E161: CASE 4 free/fixed
E162: MA = 0, RA = 0
E163: yL= qL = 0
E164: Based on length (L - b)
E165: yL = yb +qb/k*F2 + Mb/P*F3 + Vb/(kP)*F4 = 0
E166: yb*k*P + qb*P*F2 + Mb*k*F3 + Vb*F4 = 0
E167: F2, F3, F4 are F2b, F3b, F4b (span b to L)
E169: qL = qb*F1 + Mb*k/P*F2 + Vb/P*F3 = 0
E170: qb*P*F1 + Mb*k*F2 + Vb*F3 = 0
E172: Values at b for span 0 to b
E173: Vb = -qA*P*F1 - Z1*Fa2 - Z2*Fa3
E174: Mb*k = -qA*P*F2 - Z1*Fa3 - Z2*Fa4
E175: qb*P = qA*P*F1 - Z1*Fa4 - Z2*Fa5
E176: yb*k*P = yA*k*P + qA*P*F2 - Z1*Fa5 - Z2*Fa6
E178: y equation | G178: yb*k*P + qb*P*F2 + Mb*k*F3 + Vb*F4 = 0
E179: (yA*k*P + qA*P*F2 - Z1*Fa5 - Z2*Fa6)
E180: + (qA*P*F1 - Z1*Fa4 - Z2*Fa5)*F2b
E181: + (-qA*P*F2 - Z1*Fa3 - Z2*Fa4)*F3b
E182: + (-qA*P*F1 - Z1*Fa2 - Z2*Fa3)*F4b = 0
D184: yA*k*P | J184: 1
D186: qA*P | E186: F2 + F1*F2b - F2*F3b - F1*F4b | J186: =Q188+P188*Q187-Q188*R187-P188*S187 -> 0.4322350322 | N186: x | O186: kx | P186: F1 | Q186: F2 | R186: F3 | S186: F4 | T186: F5 | U186: F6
M187: L-b | N187: =B$3-B$5 -> 10 | O187: =J$5*N187 -> 0.1118033989 | P187: =COS(O187) -> 0.9937565077 | Q187: =SIN(O187) -> 0.1115706207 | R187: =1-P187 -> 0.006243492295 | S187: =O187-Q187 -> 0.0002327782136
D188: Z1 | E188: Fa5 + Fa4*F2b + Fa3*F3b + Fa2*F4b | J188: =T189+S189*Q187+R189*R187+Q189*S187 -> 0.0005184298006 | K188: =-J188*N192 -> -0.04636977103 | M188: b | N188: =B$5 -> 30 | O188: =J$5*N188 -> 0.3354101966 | P188: =COS(O188) -> 0.9442753702 | Q188: =SIN(O188) -> 0.3291565361 | R188: =1-P188 -> 0.05572462982 | S188: =O188-Q188 -> 0.0062536605
M189: b-a | N189: =B$5-B$4 -> 20 | O189: =J$5*N189 -> 0.2236067977 | P189: =COS(O189) -> 0.9751039932 | Q189: =SIN(O189) -> 0.2217480607 | R189: =1-P189 -> 0.02489600679 | S189: =O189-Q189 -> 0.001858737048 | T189: =O189^2/2-R189 -> 0.0001039932105 | U189: =O189^3/6-S189 -> 4.652932999e-06
D190: Z2 | E190: Fa6 + Fa5*F2b + Fa4*F3b + Fa3*F4b | J190: =U189+T189*Q187+S189*R187+R189*S187 -> 3.365577846e-05 | K190: =-J190*N193 -> -0.04038693416
E192: q equation | M192: Z1 | N192: =M$6 -> 89.4427191 | O192: wa/k
E193: (qA*P*F1 - Z1*Fa4 - Z2*Fa5)*F1b | M193: Z2 | N193: =M$7 -> 1200 | O193: Q/k2
E194: + (-qA*P*F2 - Z1*Fa3 - Z2*Fa4)*F2b
E195: + (-qA*P*F1 - Z1*Fa2 - Z2*Fa3)*F3b
D197: qA*P | E197: F1*F1b - F2*F2b - F1*F3b | J197: =P188*P187-Q188*Q187-P188*R187 -> 0.8957600192
D199: Z1 | E199: Fa4*F1b + Fa3*F2b + Fa2*F3b | J199: =S189*P187+R189*Q187+Q189*R187 -> 0.006009277276 | K199: =-J199*N192 -> -0.5374860994
D201: Z2 | E201: Fa5*F1b + Fa4*F2b + Fa3*F3b | J201: =T189*P187+S189*Q187+R189*R187 -> 0.0004661624024 | K201: =-J201*N193 -> -0.5593948828
D204: qA*P | E204: =-(K199+K201)/J197 -> 1.224525497 | H204: qA | I204: =E204/B8 -> 0.001224525497
D206: yA*k*P | E206: =-E204*J186-(K188+K190) -> -0.4425261123 | H206: yA | I206: =E206/(B8*J5) -> -0.03958073875
D209: Mb = [- qA*P*F2 - Z1*Fa3 - Z2*Fa4]/k | I209: =-(E204*Q188+N192*R189+N193*S189)/J5 -> -434.7194826
D210: qb*P = qA*P*F1 - [Z1*Fa4 + Z2*Fa5] | I210: =E204*P188-(N192*S189+N193*T189) -> 0.8652469183
D211: Vb = -qA*P*F1 - [Z1*Fa2 + Z2*Fa3] | I211: =-E204*P188-(N192*R189+N193*Q189) -> -269.4807287
D213: ML =Mb*F1b + Vb/k*F2b - qb*P/k*F2b | I213: =I209*P187+I211*Q187-I210*Q187/J5 -> -470.7059014

Sheet Calcs2
A3: L | B3: ='Tens Distributed'!B3 -> 40 | I3: wa | J3: =B6 -> 1
A4: a | B4: ='Tens Distributed'!B4 -> 10 | I4: Q | J4: =(B7-B6)/(B5-B4) -> 0.15 | K4: (wb-wa)/(b - a)
A5: b | B5: ='Tens Distributed'!B5 -> 30 | I5: k | J5: =SQRT(B8/(B9*B10)) -> 0.01118033989
A6: wa | B6: ='Tens Distributed'!B6 -> 1 | L6: wa/k | M6: =J3/J5 -> 89.4427191 | N6: Z1
A7: wb | B7: ='Tens Distributed'!B7 -> 4 | L7: Q/k2 | M7: =J4/J5^2 -> 1200 | N7: Z2
A8: P | B8: ='Tens Distributed'!B8 -> 1000
A9: E | B9: ='Tens Distributed'!B9 -> 80000 | C9: psi
A10: I | B10: ='Tens Distributed'!B10 -> 100 | C10: in4
A12: b - a | B12: =B5-B4 -> 20
A13: wb-wa | B13: =B7-B6 -> 3
A14: W | B14: =B12*(B6+B7)/2 -> 50
A15: Xcg | B15: =(B6*(B5+2*B4)+B7*(2*B5+B4))*B12/(6*B14) -> 22 | E15: CASE 1 ss/ss
E16: yA = yL = 0
E17: MA = ML = 0
E18: Based on length (L - b)
E19: yL = yb +qb/k*F2 + Mb/P*F3 + Vb/(kP)*F4 = 0
E20: yb*k*P + qb*P*F2 + Mb*k*F3 + Vb*F4 = 0
E21: F2, F3, F4 are F2b, F3b, F4b (length L-b)
E23: Values at b:
E24: Vb = (RA+qA*P)*F1 - Z1*Fa2 - Z2*Fa3
E25: Mb*k = (RA+qA*P)*F2 - Z1*Fa3 - Z2*Fa4
E26: qb*P = qA*P*F1 + RA*F3 - Z1*Fa4 - Z2*Fa5
E27: yb*k*P = qA*P*F2 + RA*F4 - Z1*Fa5 - Z2*Fa6
E29: (qA*P*F2 + RA*F4 - Z1*Fa5 - Z2*Fa6)
E30: + (qA*P*F1 + RA*F3 - Z1*Fa4 - Z2*Fa5)*F2b
E31: + [(RA+qA*P)*F2 - Z1*Fa3 - Z2*Fa4]*F3b
E32: + [(RA+qA*P)*F1 - Z1*Fa2 - Z2*Fa3]*F4b = 0
E34: qA*P | F34: F2 + F1*F2b + F2*F3b + F1*F4b | J34: =Q39+P39*Q38+Q39*R38+P38*S38 -> 0.462505026
E36: RA | F36: F4 + F3*F2b + F2*F3b + F1*F4b | J36: =S39+R39*Q38+Q39*R38+P39*S38 -> 0.01507013641 | K36: =J36*N42 -> 0.3390780692
N37: x | O37: kx | P37: F1 | Q37: F2 | R37: F3 | S37: F4 | T37: F5 | U37: F6
E38: Z1 | F38: Fa5 + Fa4*F2b + Fa3*F3b + Fa2*F4b | J38: =T40+S40*Q38+R40*R38+Q40*S38 -> 0.000523247523 | K38: =-J38*N43 -> -0.04680068122 | M38: L-b | N38: =B$3-B$5 -> 10 | O38: =J$5*N38 -> 0.1118033989 | P38: =COSH(O38) -> 1.006256513 | Q38: =SINH(O38) -> 0.1120364682 | R38: =P38-1 -> 0.00625651313 | S38: =Q38-O38 -> 0.0002330693683
M39: b | N39: =B$5 -> 30 | O39: =J$5*N39 -> 0.3354101966 | P39: =COSH(O39) -> 1.056779325 | Q39: =SINH(O39) -> 0.341734608 | R39: =P39-1 -> 0.05677932527 | S39: =Q39-O39 -> 0.006324411384
E40: Z2 | F40: Fa6 + Fa5*F2b + Fa4*F3b + Fa3*F4b | J40: =U40+T40*Q38+S40*R38+R40*S38 -> 3.389251539e-05 | K40: =-J40*N44 -> -0.04067101846 | M40: b-a | N40: =B$12 -> 20 | O40: 0.2236067977 | P40: 1.02510434 | Q40: 0.2254748518 | R40: 0.02510434043 | S40: 0.001868054006 | T40: =R40-O40^2/2 -> 0.0001043404329 | U40: =S40-O40^3/6 -> 4.66402461e-06
K41: =K36+K38+K40 -> 0.2516063695
E42: qA*P | F42: =-K41/J34 -> -0.5440078602 | M42: RA | N42: =B14*(B3-B15)/B3 -> 22.5
E43: qA | F43: =F42/B8 -> -0.0005440078602 | M43: Z1 | N43: =M$6 -> 89.4427191 | O43: wa/k
M44: Z2 | N44: =M$7 -> 1200 | O44: Q/k2
E48: CASE 2 ss/fixed
E49: yA = yL = 0
E50: MA = qL = 0
E51: Based on length (L - b)
E52: yL = yb +qb/k*F2 + Mb/P*F3 + Vb/(kP)*F4 = 0
E53: yb*k*P + qb*P*F2 + Mb*k*F3 + Vb*F4 = 0
E54: F2, F3, F4 are F2b, F3b, F4b (length L-b)
E56: qL = qb*F1 + Mb*k/P*F2 + Vb/P*F3 = 0
E57: qb*P*F1 + Mb*k*F2 + Vb*F3 = 0
E59: Values at b:
E60: Vb = (RA+qA*P)*F1 - Z1*Fa2 - Z2*Fa3
E61: Mb*k = (RA+qA*P)*F2 - Z1*Fa3 - Z2*Fa4
E62: qb*P = qA*P*F1 + RA*F3 - Z1*Fa4 - Z2*Fa5
E63: yb*k*P = qA*P*F2 + RA*F4 - Z1*Fa5 - Z2*Fa6
E65: y equation | G65: yb*k*P + qb*P*F2 + Mb*k*F3 + Vb*F4 = 0
E66: (qA*P*F2 + RA*F4 - Z1*Fa5 - Z2*Fa6)
E67: + (qA*P*F1 + RA*F3 - Z1*Fa4 - Z2*Fa5)*F2b
E68: + [(RA+qA*P)*F2 - Z1*Fa3 - Z2*Fa4]*F3b
E69: + [(RA+qA*P)*F1 - Z1*Fa2 - Z2*Fa3]*F4b = 0
E71: y equation
E72: qA*P | F72: F2 + F1*F2b + F2*F3b + F1*F4b | J72: =Q76+P76*Q75+Q76*R75+P76*S75 -> 0.4625168013
E74: RA | F74: F4 + F3*F2b + F2*F3b + F1*F4b | J74: =S76+R76*Q75+Q76*R75+P76*S75 -> 0.01507013641 | N74: x | O74: kx | P74: F1 | Q74: F2 | R74: F3 | S74: F4 | T74: F5 | U74: F6
M75: L-b | N75: =B$3-B$5 -> 10 | O75: =J$5*N75 -> 0.1118033989 | P75: =COSH(O75) -> 1.006256513 | Q75: =SINH(O75) -> 0.1120364682 | R75: =P75-1 -> 0.00625651313 | S75: =Q75-O75 -> 0.0002330693683
E76: Z1 | F76: Fa5 + Fa4*F2b + Fa3*F3b + Fa2*F4b | J76: =T77+S77*Q75+R77*R75+Q77*S75 -> 0.000523247523 | K76: =-J76*N80 -> -0.04680068122 | M76: b | N76: =B$5 -> 30 | O76: =J$5*N76 -> 0.3354101966 | P76: =COSH(O76) -> 1.056779325 | Q76: 0.341734608 | R76: =P76-1 -> 0.05677932527 | S76: =Q76-O76 -> 0.006324411384
M77: b-a | N77: =B$12 -> 20 | O77: 0.2236067977 | P77: 1.02510434 | Q77: 0.2254748518 | R77: 0.02510434043 | S77: 0.001868054006 | T77: =R77-O77^2/2 -> 0.0001043404329 | U77: =S77-O77^3/6 -> 4.66402461e-06
E78: Z2 | F78: Fa6 + Fa5*F2b + Fa4*F3b + Fa3*F4b | J78: =U77+T77*Q75+S77*R75+R77*S75 -> 3.389251539e-05 | K78: =-J78*N81 -> -0.04067101846
M80: Z1 | N80: =M$6 -> 89.4427191 | O80: wa/k
E81: q equation | G81: qb*P*F1 + Mb*k*F2 + Vb*F3 = 0 | M81: Z2 | N81: =M$7 -> 1200 | O81: Q/k2
E82: (qA*P*F1 + RA*F3 - Z1*Fa4 - Z2*Fa5)*F1b
E83: + [(RA+qA*P)*F2 - Z1*Fa3 - Z2*Fa4]*F2b
E84: + [ (RA+qA*P)*F1 - Z1*Fa2 - Z2*Fa3]*F3b = 0
E86: qA*P | F86: F1*F1b + F2*F2b + F1*F3b | J86: =P76*P75+Q76*Q75+P76*R75 -> 1.108289571
E88: RA | F88: F3*F1b + F2*F2b + F1*F3b | J88: =R76*P75+Q76*Q75+P76*R75 -> 0.1020330581
E90: Z1 | F90: Fa4*F1b + Fa3*F2b + Fa2*F3b | J90: =S77*P75+R77*Q75+Q77*R75 -> 0.00610302952 | K90: =-J90*N80 -> -0.5458715551
E92: Z2 | F92: Fa5*F1b + Fa4*F2b + Fa3*F4b | J92: =T77*P75+S77*Q75+R77*R75 -> 0.000471349049 | K92: =-N81*J92 -> -0.5656188588
F94: qA*P | G94: RA
E95: y | F95: =J72 -> 0.4625168013 | G95: =J74 -> 0.01507013641 | J95: =-K76-K78 -> 0.08747169968
E96: q | F96: =J86 -> 1.108289571 | G96: =J88 -> 0.1020330581 | J96: =-K90-K92 -> 1.111490414
E98: inverse | F98: =MINVERSE(F95:G96) -> 3.346451193 | G98: -0.4942660436 | N98: Mb*k = [(RA + qA*P)*F2 - Z1*Fa3 - Z2*Fa4] | T98: =J102*Q76-N80*R77-N81*S77 -> 0.1005696182
F99: -36.34936584 | G99: 15.16949438 | N99: qb*P = qA*P*F1 + RA*F3 - [Z1*Fa4 + Z2*Fa5] | T99: =F101*P76+F102*R76-(N80*S77+N81*T77) -> 0.2132926059
N100: Vb = (RA + qA*P)*F1 - [Z1*Fa2 + Z2*Fa3] | T100: =J102*P76-(N80*Q77+N81*R77) -> -36.10550063
E101: qA*P | F101: =MMULT(F98:G99,J95:J96) -> -0.2566521956 | I101: qA | J101: =F101/B8 -> -0.0002566521956
E102: RA | F102: 13.68120677 | I102: RA + qA*P | J102: =F102+F101 -> 13.42455457 | N102: ML*k = Mb*k*F1b + (Vb + qb*P)*F2b | T102: =T98*P75+(T100+T99)*Q38 -> -3.920037391
N103: ML | T103: =T102/J5 -> -350.6188032
E105: CASE 3 fixed/fixed
E106: yA = yL = 0
E107: qA = qL = 0
E108: Based on length (L - b)
E109: yL = yb +qb/k*F2 + Mb/P*F3 + Vb/(kP)*F4 = 0
E110: yb*k*P + qb*P*F2 + Mb*k*F3 + Vb*F4 = 0
E111: F2, F3, F4 are F2b, F3b, F4b (length L-b)
E113: qL = qb*F1 + Mb*k/P*F2 + Vb/P*F3 = 0
E114: qb*P*F1 + Mb*k*F2 + Vb*F3 = 0
E116: Values at b:
E117: Vb = RA*F1 - MA*k*F2 - Z1*Fa2 - Z2*Fa3
E118: Mb*k = MA*k*F1 + RA*F2 - Z1*Fa3 - Z2*Fa4
E119: qb*P = MA*k*F2 + RA*F3 - Z1*Fa4 - Z2*Fa5
E120: yb*k*P = MA*k*F3 + RA*F4 - Z1*Fa5 - Z2*Fa6
E122: y equation | G122: yb*k*P + qb*P*F2 + Mb*k*F3 + Vb*F4 = 0
E123: (MA*k*F3 + RA*F4 - Z1*Fa5 - Z2*Fa6)
E124: + (MA*k*F2 + RA*F3 - Z1*Fa4 - Z2*Fa5)*F2b
E125: + (MA*k*F1 + RA*F2 - Z1*Fa3 - Z2*Fa4)*F3b
E126: +(RA*F1 - MA*k*F2 - Z1*Fa2 - Z2*Fa3)*F4b = 0
E128: y equation
E129: MA*k | F129: F3 + F2*F2b + F1*F3b - F2*F4b | J129: =R133+Q133*Q132+P133*R132-Q133*S132 -> 0.1015981697
E131: RA | F131: F4 + F3*F2b + F2*F3b + F1*F4b | J131: =S133+R133*Q132+Q133*R132+P133*S132 -> 0.01507013641 | N131: x | O131: kx | P131: F1 | Q131: F2 | R131: F3 | S131: F4 | T131: F5 | U131: F6
M132: L-b | N132: =B$3-B$5 -> 10 | O132: =J$5*N132 -> 0.1118033989 | P132: =COSH(O132) -> 1.006256513 | Q132: =SINH(O132) -> 0.1120364682 | R132: =P132-1 -> 0.00625651313 | S132: =Q132-O132 -> 0.0002330693683
E133: Z1 | F133: Fa5 + Fa4*F2b + Fa3*F3b + Fa2*F4b | J133: =T134+S134*Q132+R134*R132+Q134*S132 -> 0.000523247523 | K133: =-J133*N137 -> -0.04680068122 | M133: b | N133: =B$5 -> 30 | O133: =J$5*N133 -> 0.3354101966 | P133: =COSH(O133) -> 1.056779325 | Q133: 0.341734608 | R133: =P133-1 -> 0.05677932527 | S133: =Q133-O133 -> 0.006324411384
M134: b-a | N134: =B$12 -> 20 | O134: 0.2236067977 | P134: 1.02510434 | Q134: 0.2254748518 | R134: 0.02510434043 | S134: 0.001868054006 | T134: =R134-O134^2/2 -> 0.0001043404329 | U134: =S134-O134^3/6 -> 4.66402461e-06
E135: Z2 | F135: Fa6 + Fa5*F2b + Fa4*F3b + Fa3*F4b | J135: =U134+T134*Q132+S134*R132+R134*S132 -> 3.389251539e-05 | K135: =-J135*N138 -> -0.04067101846
E137: q equation | G137: qb*P*F1 + Mb*k*F2 + Vb*F3 = 0 | M137: Z1 | N137: =M$6 -> 89.4427191 | O137: wa/k
E138: (MA*k*F2 + RA*F3 - Z1*Fa4 - Z2*Fa5)*F1b | M138: Z2 | N138: =M$7 -> 1200 | O138: Q/k2
E139: + (MA*k*F1 + RA*F2 - Z1*Fa3 - Z2*Fa4)*F2b
E140: + (RA*F1 - MA*k*F2 - Z1*Fa2 - Z2*Fa3)*F3b = 0
E142: MA*k | F142: F2*F1b + F1*F2b - F2*F3b | J142: =Q133*P132+P133*Q132-Q133*R132 -> 0.4601324313
E144: RA | F144: F3*F1b + F2*F2b + F1*F3b | J144: =R133*P132+Q133*Q132+P133*R132 -> 0.1020330581
E146: Z1 | F146: Fa4*F1b + Fa3*F2b + Fa2*F3b | J146: =S134*P132+R134*Q132+Q134*R132 -> 0.00610302952 | K146: =-J146*N137 -> -0.5458715551
E148: Z2 | F148: Fa5*F1b + Fa4*F2b + Fa3*F3b | J148: =T134*P132+S134*Q132+R134*R132 -> 0.000471349049 | K148: =-J148*N138 -> -0.5656188588
F150: MA*k | G150: RA
E151: y | F151: =J129 -> 0.1015981697 | G151: =J131 -> 0.01507013641 | J151: =-K133-K135 -> 0.08747169968
E152: q | F152: =J142 -> 0.4601324313 | G152: =J144 -> 0.1020330581 | J152: =-K146-K148 -> 1.111490414
E154: inverse | F154: =MINVERSE(F151:G152) -> 29.72892933 | G154: -4.390920241
F155: -134.0667895 | G155: 29.60221776
E157: MA*k | F157: =MMULT(F154:G155,J151:J152) -> -2.280025778 | I157: MA | J157: =F157/J5 -> -203.9317052 | N157: ML | O157: =J157+F158*B3-B14*(B3-B15) -> -256.9104524
E158: RA | F158: 21.17553132
E161: CASE 4 free/fixed
E162: MA = 0, RA = 0
E163: yL= qL = 0
E164: Based on length (L - b)
E165: yL = yb +qb/k*F2 + Mb/P*F3 + Vb/(kP)*F4 = 0
E166: yb*k*P + qb*P*F2 + Mb*k*F3 + Vb*F4 = 0
E167: F2, F3, F4 are F2b, F3b, F4b (length L-b)
E169: qL = qb*F1 + Mb*k/P*F2 + Vb/P*F3 = 0
E170: qb*P*F1 + Mb*k*F2 + Vb*F3 = 0
E172: Values at b:
E173: Vb = qA*P*F1 - Z1*Fa2 - Z2*Fa3
E174: Mb*k = qA*P*F2 - Z1*Fa3 - Z2*Fa4
E175: qb*P = qA*P*F1 - Z1*Fa4 - Z2*Fa5
E176: yb*k*P = yA*k*P + qA*P*F2 - Z1*Fa5 - Z2*Fa6
E178: y equation | G178: yb*k*P + qb*P*F2 + Mb*k*F3 + Vb*F4 = 0
E179: (yA*k*P + qA*P*F2 - Z1*Fa5 - Z2*Fa6)
E180: + (qA*P*F1 - Z1*Fa4 - Z2*Fa5)*F2b
E181: + (qA*P*F2 - Z1*Fa3 - Z2*Fa4)*F3b
E182: + (qA*P*F1 - Z1*Fa2 - Z2*Fa3)*F4b = 0
D184: yA*k*P | J184: 1
D186: qA*P | E186: F2 + F1*F2b + F2*F3b + F1*F4b | J186: =Q188+P188*Q187+Q188*R187+P188*S187 -> 0.4625168013 | N186: x | O186: kx | P186: F1 | Q186: F2 | R186: F3 | S186: F4 | T186: F5 | U186: F6
M187: L-b | N187: =B$3-B$5 -> 10 | O187: =J$5*N187 -> 0.1118033989 | P187: =COSH(O187) -> 1.006256513 | Q187: =SINH(O187) -> 0.1120364682 | R187: =P187-1 -> 0.00625651313 | S187: =Q187-O187 -> 0.0002330693683
D188: Z1 | E188: Fa5 + Fa4*F2b + Fa3*F3b + Fa2*F4b | J188: =T189+S189*Q187+R189*R187+Q189*S187 -> 0.000523247523 | K188: =-J188*N192 -> -0.04680068122 | M188: b | N188: =B$5 -> 30 | O188: =J$5*N188 -> 0.3354101966 | P188: =COSH(O188) -> 1.056779325 | Q188: 0.341734608 | R188: =P188-1 -> 0.05677932527 | S188: =Q188-O188 -> 0.006324411384
M189: b-a | N189: =B$12 -> 20 | O189: 0.2236067977 | P189: 1.02510434 | Q189: 0.2254748518 | R189: 0.02510434043 | S189: 0.001868054006 | T189: =R189-O189^2/2 -> 0.0001043404329 | U189: =S189-O189^3/6 -> 4.66402461e-06
D190: Z2 | E190: Fa6 + Fa5*F2b + Fa4*F3b + Fa3*F4b | J190: =U189+T189*Q187+S189*R187+R189*S187 -> 3.389251539e-05 | K190: =-J190*N193 -> -0.04067101846
E192: q equation | G192: qb*P*F1 + Mb*k*F2 + Vb*F3 = 0 | M192: Z1 | N192: =M$6 -> 89.4427191 | O192: wa/k
E193: (qA*P*F1 - Z1*Fa4 - Z2*Fa5)*F1b | M193: Z2 | N193: =M$7 -> 1200 | O193: Q/k2
E194: + (qA*P*F2 - Z1*Fa3 - Z2*Fa4)*F2b
E195: + (qA*P*F1 - Z1*Fa2 - Z2*Fa3)*F3b
D197: qA*P | E197: F1*F1b + F2*F2b +- F1*F3b | J197: =P188*P187+Q188*Q187+P188*R187 -> 1.108289571
D199: Z1 | E199: Fa4*F1b + Fa3*F2b + Fa2*F3b | J199: =S189*P187+R189*Q187+Q189*R187 -> 0.00610302952 | K199: =-J199*N192 -> -0.5458715551
D201: Z2 | E201: Fa5*F1b + Fa4*F2b + Fa3*F3b | J201: =T189*P187+S189*Q187+R189*R187 -> 0.000471349049 | K201: =-J201*N193 -> -0.5656188588
D204: qA*P | E204: =-(K199+K201)/J197 -> 1.002888092 | H204: qA | I204: =E204/B8 -> 0.001002888092
D206: yA*k*P | E206: =-E204*J186-(K188+K190) -> -0.3763808928 | H206: yA | I206: =E206/(B8*J5) -> -0.03366453047
D209: Mb = [qA*P*F2 - Z1*Fa3 - Z2*Fa4]/k | I209: =(E204*Q188-N192*R189-N193*S189)/J5 -> -370.6813701
D210: qb*P = qA*P*F1 - [Z1*Fa4 + Z2*Fa5] | I210: =E204*P188-(N192*S189+N193*T189) -> 0.7675390523
D211: Vb = qA*P*F1 - [Z1*Fa2 + Z2*Fa3] | I211: =E204*P188-(N192*R189+N193*Q189) -> -271.7553912
D213: ML =Mb*F1b + Vb/k*F2b + qb*P/k*F2b | I213: =I209*P187+I211*Q187+I210*Q187/J5 -> -395.7556663
